Supplier Name,Service Area Category,Supp Grp,Period,Invoice Date,TT,Unique Invoice Reference,,Inv Amount,Account,Expenditure Description,Cost C,Cost Centre Name,Posted Amount
Derbyshire Fire Authority,Operational Responses,4,202212,23/03/2022,P6,9100598,"-36,353.08 ","36,353.08 ",1001,Admin Pay,2005,Fire Control,"6,640.70 "
Express Recruitment Ltd,Management & Support Services,1,202212,09/03/2022,P6,9100145,-723.72 ,723.72 ,1005,Admin Agency Staff,2086,Procurement,603.10 
Express Recruitment Ltd,Management & Support Services,1,202212,02/03/2022,P6,9100431,-723.72 ,723.72 ,1005,Admin Agency Staff,2086,Procurement,603.10 
Express Recruitment Ltd,Management & Support Services,1,202212,16/03/2022,P6,9100432,-723.72 ,723.72 ,1005,Admin Agency Staff,2086,Procurement,603.10 
Express Recruitment Ltd,Management & Support Services,1,202212,23/03/2022,P6,9100456,-723.72 ,723.72 ,1005,Admin Agency Staff,2087,Estates Department (Previously Premises),603.10 
Nottinghamshire Healthcare NHS Trust,Management & Support Services,5,202212,24/03/2022,P6,9100504,"-4,193.57 ","4,193.57 ",1005,Admin Agency Staff,2068,Prevention,"4,193.57 "
Nottinghamshire Healthcare NHS Trust,Management & Support Services,5,202212,23/02/2022,P6,9100505,"-4,352.28 ","4,352.28 ",1005,Admin Agency Staff,2068,Prevention,"4,352.28 "
Express Recruitment Ltd,Management & Support Services,1,202212,30/03/2022,P6,9100630,-723.72 ,723.72 ,1005,Admin Agency Staff,2086,Procurement,603.10 
Xact Consultancy & Training Limited,"Statutory Inspection, Certification & Enforcement",5,202212,25/02/2022,P6,9099964,"-1,368.00 ","1,368.00 ",1801,Training,2021,Fire Protection,"1,140.00 "
Driving Standards Agency,Management & Support Services,4,202212,16/04/2022,P6,9099965,-950.00 ,950.00 ,1801,Training,2059,Corporate Training,950.00 
R3 Safety & Rescue Limited,Management & Support Services,5,202212,28/02/2022,P6,9099968,"-1,140.00 ","1,140.00 ",1801,Training,2059,Corporate Training,950.00 
R3 Safety & Rescue Limited,Management & Support Services,5,202212,28/02/2022,P6,9099969,"-1,140.00 ","1,140.00 ",1801,Training,2059,Corporate Training,950.00 
R3 Safety & Rescue Limited,Management & Support Services,5,202212,28/02/2022,P6,9099970,"-1,140.00 ","1,140.00 ",1801,Training,2059,Corporate Training,950.00 
Ics,Management & Support Services,1,202212,03/11/2021,P6,9100107,"-1,629.00 ","1,629.00 ",1801,Training,2049,Professional Support,"1,357.50 "
AVADO Learning Limited,Management & Support Services,5,202212,21/02/2022,P6,9100126,"-1,556.26 ","1,556.26 ",1801,Training,2049,Professional Support,"1,296.88 "
Actorshop Training Associates,Management & Support Services,5,202212,08/03/2022,P6,9100175,-460.00 ,460.00 ,1801,Training,2054,Equalities Team,460.00 
Actorshop Training Associates,Management & Support Services,5,202212,08/03/2022,P6,9100176,-600.00 ,600.00 ,1801,Training,2054,Equalities Team,600.00 
Concerto Support Services Limited,Management & Support Services,5,202212,28/02/2022,P6,9100187,"-1,080.00 ","1,080.00 ",1801,Training,2087,Estates Department (Previously Premises),900.00 
Northanmpton Active (UK Elite Sports Limited),Management & Support Services,5,202212,09/12/2021,P6,9100189,"-6,784.00 ","6,784.00 ",1801,Training,2059,Corporate Training,"5,696.88 "
Xact Consultancy & Training Limited,"Statutory Inspection, Certification & Enforcement",5,202212,11/03/2022,P6,9100201,"-1,080.00 ","1,080.00 ",1801,Training,2021,Fire Protection,900.00 
Ics,Management & Support Services,1,202212,03/11/2021,P6,9100228,"-1,629.00 ","1,629.00 ",1801,Training,2049,Professional Support,"1,357.50 "
Xact Consultancy & Training Limited,"Statutory Inspection, Certification & Enforcement",5,202212,18/03/2022,P6,9100293,-534.00 ,534.00 ,1801,Training,2021,Fire Protection,445.00 
Xact Consultancy & Training Limited,"Statutory Inspection, Certification & Enforcement",5,202212,18/03/2022,P6,9100294,"-1,068.00 ","1,068.00 ",1801,Training,2021,Fire Protection,890.00 
Lithium3 Technology Recruitment Limited,"Statutory Inspection, Certification & Enforcement",5,202212,28/02/2022,P6,9100301,-594.00 ,594.00 ,1801,Training,2021,Fire Protection,495.00 
College of Policing,Management & Support Services,1,202212,16/03/2022,P6,9100302,"-2,786.50 ","2,786.50 ",1801,Training,2059,Corporate Training,"2,786.50 "
Lincolnshire Fire and Rescue Service,Management & Support Services,4,202212,18/03/2022,P6,9100310,"-11,250.00 ","11,250.00 ",1801,Training,2059,Corporate Training,"1,250.00 "
Lincolnshire Fire and Rescue Service,Management & Support Services,4,202212,18/03/2022,P6,9100310,"-11,250.00 ","11,250.00 ",1801,Training,2059,Corporate Training,"10,000.00 "
Actorshop Training Associates,Management & Support Services,5,202212,18/03/2022,P6,9100362,-460.00 ,460.00 ,1801,Training,2054,Equalities Team,460.00 
Lincolnshire Fire and Rescue Service,Operational Responses,4,202212,24/03/2022,P6,9100488,"-6,120.00 ","6,120.00 ",1801,Training,1029,Highfields Station,"6,120.00 "
Lincolnshire Fire and Rescue Service,Operational Responses,4,202212,24/03/2022,P6,9100489,"-6,120.00 ","6,120.00 ",1801,Training,1016,Newark,"6,120.00 "
The University Of Salford,Management & Support Services,1,202212,25/03/2022,P6,9100499,"-2,700.00 ","2,700.00 ",1801,Training,2059,Corporate Training,"2,250.00 "
Xact Consultancy & Training Limited,"Statutory Inspection, Certification & Enforcement",5,202212,18/03/2022,P6,9100507,"-1,068.00 ","1,068.00 ",1801,Training,2021,Fire Protection,890.00 
Actorshop Training Associates,Management & Support Services,5,202212,18/03/2022,P6,9100508,-600.00 ,600.00 ,1801,Training,2054,Equalities Team,600.00 
Xact Consultancy & Training Limited,"Statutory Inspection, Certification & Enforcement",5,202212,18/03/2022,P6,9100510,"-1,068.00 ","1,068.00 ",1801,Training,2021,Fire Protection,890.00 
Synergy Health Laboratory Services Ltd,Management & Support Services,5,202212,27/03/2022,P6,9100532,-999.72 ,999.72 ,1801,Training,2061,Occupational Health & Fitness,833.10 
Kingsfield Computer Products Ltd,Management & Support Services,1,202212,29/03/2022,P6,9100590,"-1,079.93 ","1,079.93 ",1801,Training,2059,Corporate Training,899.94 
The Institution Of Fire Engineers,Management & Support Services,1,202212,04/03/2022,P6,9100627,-516.00 ,516.00 ,1801,Training,2059,Corporate Training,516.00 
ioda Limited,Management & Support Services,5,202212,28/03/2022,P6,9100649,"-1,188.00 ","1,188.00 ",1801,Training,2054,Equalities Team,990.00 
ioda Limited,Management & Support Services,5,202212,28/03/2022,P6,9100651,"-1,188.00 ","1,188.00 ",1801,Training,2054,Equalities Team,990.00 
Actorshop Training Associates,Management & Support Services,5,202212,31/03/2022,P6,9100663,-460.00 ,460.00 ,1801,Training,2054,Equalities Team,460.00 
Local Government Association,Management & Support Services,1,202212,25/01/2022,P6,9100689,"-1,422.00 ","1,422.00 ",1801,Training,2093,Command Suite,"1,185.00 "
C F S Messing Account Stockhill,Operational Responses,8,202212,28/02/2022,P6,9100559,-366.00 ,366.00 ,1814,Spoilt Meal Reimbursement,1020,Stockhill,366.00 
Flat Fee Recruiter Limited,Management & Support Services,5,202212,16/03/2022,P6,9100321,-597.60 ,597.60 ,1850,Recruitment Advertising,2049,Professional Support,498.00 
Bupa UK Insurance Services,Management & Support Services,5,202212,25/02/2022,P6,9100044,"-3,354.51 ","3,354.51 ",1860,Employee Benefits Schemes,2049,Professional Support,"3,354.51 "
Bupa UK Insurance Services,Management & Support Services,5,202212,30/03/2022,P6,9100640,"-3,337.19 ","3,337.19 ",1860,Employee Benefits Schemes,2049,Professional Support,"3,337.19 "
NCC Pension Fund,Management & Support Services,1,202212,24/01/2022,P6,9100130,"-5,718.39 ","5,718.39 ",1905,Gratuities,1089,Pension Costs met from Revenue,92.58 
NCC Pension Fund,Management & Support Services,1,202212,24/01/2022,P6,9100130,"-5,718.39 ","5,718.39 ",1921,Annual Pensions - Non Uniforms,1089,Pension Costs met from Revenue,"5,625.81 "
"Graham Asset Management, John Graham Holdings Limited",Management & Support Services,5,202212,14/03/2022,P6,9100186,"-1,612.46 ","1,612.46 ",2000,Buildings Repairs and Maintenance - Reactive,2087,Estates Department (Previously Premises),306.97 
"Graham Asset Management, John Graham Holdings Limited",Management & Support Services,5,202212,14/03/2022,P6,9100186,"-1,612.46 ","1,612.46 ",2000,Buildings Repairs and Maintenance - Reactive,2087,Estates Department (Previously Premises),514.25 
"Graham Asset Management, John Graham Holdings Limited",Management & Support Services,5,202212,14/03/2022,P6,9100186,"-1,612.46 ","1,612.46 ",2000,Buildings Repairs and Maintenance - Reactive,2087,Estates Department (Previously Premises),522.50 
"Graham Asset Management, John Graham Holdings Limited",Management & Support Services,5,202212,14/03/2022,P6,9100188,"-12,976.83 ","12,976.83 ",2000,Buildings Repairs and Maintenance - Reactive,2087,Estates Department (Previously Premises),66.00 
"Graham Asset Management, John Graham Holdings Limited",Management & Support Services,5,202212,14/03/2022,P6,9100188,"-12,976.83 ","12,976.83 ",2000,Buildings Repairs and Maintenance - Reactive,2087,Estates Department (Previously Premises),106.93 
"Graham Asset Management, John Graham Holdings Limited",Management & Support Services,5,202212,14/03/2022,P6,9100188,"-12,976.83 ","12,976.83 ",2000,Buildings Repairs and Maintenance - Reactive,2087,Estates Department (Previously Premises),136.86 
"Graham Asset Management, John Graham Holdings Limited",Management & Support Services,5,202212,14/03/2022,P6,9100188,"-12,976.83 ","12,976.83 ",2000,Buildings Repairs and Maintenance - Reactive,2087,Estates Department (Previously Premises),160.68 
"Graham Asset Management, John Graham Holdings Limited",Management & Support Services,5,202212,14/03/2022,P6,9100188,"-12,976.83 ","12,976.83 ",2000,Buildings Repairs and Maintenance - Reactive,2087,Estates Department (Previously Premises),190.85 
"Graham Asset Management, John Graham Holdings Limited",Management & Support Services,5,202212,14/03/2022,P6,9100188,"-12,976.83 ","12,976.83 ",2000,Buildings Repairs and Maintenance - Reactive,2087,Estates Department (Previously Premises),210.56 
"Graham Asset Management, John Graham Holdings Limited",Management & Support Services,5,202212,14/03/2022,P6,9100188,"-12,976.83 ","12,976.83 ",2000,Buildings Repairs and Maintenance - Reactive,2087,Estates Department (Previously Premises),213.83 
"Graham Asset Management, John Graham Holdings Limited",Management & Support Services,5,202212,14/03/2022,P6,9100188,"-12,976.83 ","12,976.83 ",2000,Buildings Repairs and Maintenance - Reactive,2087,Estates Department (Previously Premises),278.10 
"Graham Asset Management, John Graham Holdings Limited",Management & Support Services,5,202212,14/03/2022,P6,9100188,"-12,976.83 ","12,976.83 ",2000,Buildings Repairs and Maintenance - Reactive,2087,Estates Department (Previously Premises),313.78 
"Graham Asset Management, John Graham Holdings Limited",Management & Support Services,5,202212,14/03/2022,P6,9100188,"-12,976.83 ","12,976.83 ",2000,Buildings Repairs and Maintenance - Reactive,2087,Estates Department (Previously Premises),323.25 
"Graham Asset Management, John Graham Holdings Limited",Management & Support Services,5,202212,14/03/2022,P6,9100188,"-12,976.83 ","12,976.83 ",2000,Buildings Repairs and Maintenance - Reactive,2087,Estates Department (Previously Premises),328.40 
"Graham Asset Management, John Graham Holdings Limited",Management & Support Services,5,202212,14/03/2022,P6,9100188,"-12,976.83 ","12,976.83 ",2000,Buildings Repairs and Maintenance - Reactive,2087,Estates Department (Previously Premises),338.01 
"Graham Asset Management, John Graham Holdings Limited",Management & Support Services,5,202212,14/03/2022,P6,9100188,"-12,976.83 ","12,976.83 ",2000,Buildings Repairs and Maintenance - Reactive,2087,Estates Department (Previously Premises),353.17 
"Graham Asset Management, John Graham Holdings Limited",Management & Support Services,5,202212,14/03/2022,P6,9100188,"-12,976.83 ","12,976.83 ",2000,Buildings Repairs and Maintenance - Reactive,2087,Estates Department (Previously Premises),427.28 
"Graham Asset Management, John Graham Holdings Limited",Management & Support Services,5,202212,14/03/2022,P6,9100188,"-12,976.83 ","12,976.83 ",2000,Buildings Repairs and Maintenance - Reactive,2087,Estates Department (Previously Premises),546.72 
"Graham Asset Management, John Graham Holdings Limited",Management & Support Services,5,202212,14/03/2022,P6,9100188,"-12,976.83 ","12,976.83 ",2000,Buildings Repairs and Maintenance - Reactive,2087,Estates Department (Previously Premises),605.30 
"Graham Asset Management, John Graham Holdings Limited",Management & Support Services,5,202212,14/03/2022,P6,9100188,"-12,976.83 ","12,976.83 ",2000,Buildings Repairs and Maintenance - Reactive,2087,Estates Department (Previously Premises),853.48 
"Graham Asset Management, John Graham Holdings Limited",Management & Support Services,5,202212,14/03/2022,P6,9100188,"-12,976.83 ","12,976.83 ",2000,Buildings Repairs and Maintenance - Reactive,2087,Estates Department (Previously Premises),"1,466.12 "
"Graham Asset Management, John Graham Holdings Limited",Management & Support Services,5,202212,14/03/2022,P6,9100188,"-12,976.83 ","12,976.83 ",2000,Buildings Repairs and Maintenance - Reactive,2087,Estates Department (Previously Premises),"1,528.13 "
"Graham Asset Management, John Graham Holdings Limited",Management & Support Services,5,202212,14/03/2022,P6,9100188,"-12,976.83 ","12,976.83 ",2000,Buildings Repairs and Maintenance - Reactive,2087,Estates Department (Previously Premises),"2,366.55 "
PPL PRS Ltd,Operational Responses,1,202212,04/03/2022,P6,9100383,"-3,333.12 ","3,333.12 ",2000,Buildings Repairs and Maintenance - Reactive,1001,Mansfield,198.40 
PPL PRS Ltd,Operational Responses,1,202212,04/03/2022,P6,9100383,"-3,333.12 ","3,333.12 ",2000,Buildings Repairs and Maintenance - Reactive,1003,London Road,198.40 
PPL PRS Ltd,Operational Responses,1,202212,04/03/2022,P6,9100383,"-3,333.12 ","3,333.12 ",2000,Buildings Repairs and Maintenance - Reactive,1005,Ashfield,198.40 
PPL PRS Ltd,Operational Responses,1,202212,04/03/2022,P6,9100383,"-3,333.12 ","3,333.12 ",2000,Buildings Repairs and Maintenance - Reactive,1006,Edwinstowe,198.40 
PPL PRS Ltd,Operational Responses,1,202212,04/03/2022,P6,9100383,"-3,333.12 ","3,333.12 ",2000,Buildings Repairs and Maintenance - Reactive,1008,Worksop,198.40 
PPL PRS Ltd,Operational Responses,1,202212,04/03/2022,P6,9100383,"-3,333.12 ","3,333.12 ",2000,Buildings Repairs and Maintenance - Reactive,1012,Retford,198.40 
PPL PRS Ltd,Operational Responses,1,202212,04/03/2022,P6,9100383,"-3,333.12 ","3,333.12 ",2000,Buildings Repairs and Maintenance - Reactive,1016,Newark,198.40 
PPL PRS Ltd,Operational Responses,1,202212,04/03/2022,P6,9100383,"-3,333.12 ","3,333.12 ",2000,Buildings Repairs and Maintenance - Reactive,1019,West Bridgford,198.40 
PPL PRS Ltd,Operational Responses,1,202212,04/03/2022,P6,9100383,"-3,333.12 ","3,333.12 ",2000,Buildings Repairs and Maintenance - Reactive,1020,Stockhill,198.40 
PPL PRS Ltd,Operational Responses,1,202212,04/03/2022,P6,9100383,"-3,333.12 ","3,333.12 ",2000,Buildings Repairs and Maintenance - Reactive,1026,Arnold,198.40 
PPL PRS Ltd,Operational Responses,1,202212,04/03/2022,P6,9100383,"-3,333.12 ","3,333.12 ",2000,Buildings Repairs and Maintenance - Reactive,1027,Carlton,198.40 
PPL PRS Ltd,Operational Responses,1,202212,04/03/2022,P6,9100383,"-3,333.12 ","3,333.12 ",2000,Buildings Repairs and Maintenance - Reactive,1029,Highfields Station,198.40 
PPL PRS Ltd,Management & Support Services,1,202212,04/03/2022,P6,9100383,"-3,333.12 ","3,333.12 ",2000,Buildings Repairs and Maintenance - Reactive,1030,Service Development Centre,198.40 
PPL PRS Ltd,Management & Support Services,1,202212,04/03/2022,P6,9100383,"-3,333.12 ","3,333.12 ",2000,Buildings Repairs and Maintenance - Reactive,1035,Headquarters,198.40 
"Graham Asset Management, John Graham Holdings Limited",Management & Support Services,5,202212,23/03/2022,P6,9100541,"-14,898.68 ","14,898.68 ",2000,Buildings Repairs and Maintenance - Reactive,2087,Estates Department (Previously Premises),102.50 
"Graham Asset Management, John Graham Holdings Limited",Management & Support Services,5,202212,23/03/2022,P6,9100541,"-14,898.68 ","14,898.68 ",2000,Buildings Repairs and Maintenance - Reactive,2087,Estates Department (Previously Premises),155.97 
"Graham Asset Management, John Graham Holdings Limited",Management & Support Services,5,202212,23/03/2022,P6,9100541,"-14,898.68 ","14,898.68 ",2000,Buildings Repairs and Maintenance - Reactive,2087,Estates Department (Previously Premises),188.10 
"Graham Asset Management, John Graham Holdings Limited",Management & Support Services,5,202212,23/03/2022,P6,9100541,"-14,898.68 ","14,898.68 ",2000,Buildings Repairs and Maintenance - Reactive,2087,Estates Department (Previously Premises),202.78 
"Graham Asset Management, John Graham Holdings Limited",Management & Support Services,5,202212,23/03/2022,P6,9100541,"-14,898.68 ","14,898.68 ",2000,Buildings Repairs and Maintenance - Reactive,2087,Estates Department (Previously Premises),208.50 
"Graham Asset Management, John Graham Holdings Limited",Management & Support Services,5,202212,23/03/2022,P6,9100541,"-14,898.68 ","14,898.68 ",2000,Buildings Repairs and Maintenance - Reactive,2087,Estates Department (Previously Premises),215.67 
"Graham Asset Management, John Graham Holdings Limited",Management & Support Services,5,202212,23/03/2022,P6,9100541,"-14,898.68 ","14,898.68 ",2000,Buildings Repairs and Maintenance - Reactive,2087,Estates Department (Previously Premises),237.60 
"Graham Asset Management, John Graham Holdings Limited",Management & Support Services,5,202212,23/03/2022,P6,9100541,"-14,898.68 ","14,898.68 ",2000,Buildings Repairs and Maintenance - Reactive,2087,Estates Department (Previously Premises),240.74 
"Graham Asset Management, John Graham Holdings Limited",Management & Support Services,5,202212,23/03/2022,P6,9100541,"-14,898.68 ","14,898.68 ",2000,Buildings Repairs and Maintenance - Reactive,2087,Estates Department (Previously Premises),283.60 
"Graham Asset Management, John Graham Holdings Limited",Management & Support Services,5,202212,23/03/2022,P6,9100541,"-14,898.68 ","14,898.68 ",2000,Buildings Repairs and Maintenance - Reactive,2087,Estates Department (Previously Premises),349.94 
"Graham Asset Management, John Graham Holdings Limited",Management & Support Services,5,202212,23/03/2022,P6,9100541,"-14,898.68 ","14,898.68 ",2000,Buildings Repairs and Maintenance - Reactive,2087,Estates Department (Previously Premises),412.50 
"Graham Asset Management, John Graham Holdings Limited",Management & Support Services,5,202212,23/03/2022,P6,9100541,"-14,898.68 ","14,898.68 ",2000,Buildings Repairs and Maintenance - Reactive,2087,Estates Department (Previously Premises),417.55 
"Graham Asset Management, John Graham Holdings Limited",Management & Support Services,5,202212,23/03/2022,P6,9100541,"-14,898.68 ","14,898.68 ",2000,Buildings Repairs and Maintenance - Reactive,2087,Estates Department (Previously Premises),448.32 
"Graham Asset Management, John Graham Holdings Limited",Management & Support Services,5,202212,23/03/2022,P6,9100541,"-14,898.68 ","14,898.68 ",2000,Buildings Repairs and Maintenance - Reactive,2087,Estates Department (Previously Premises),454.88 
"Graham Asset Management, John Graham Holdings Limited",Management & Support Services,5,202212,23/03/2022,P6,9100541,"-14,898.68 ","14,898.68 ",2000,Buildings Repairs and Maintenance - Reactive,2087,Estates Department (Previously Premises),464.46 
"Graham Asset Management, John Graham Holdings Limited",Management & Support Services,5,202212,23/03/2022,P6,9100541,"-14,898.68 ","14,898.68 ",2000,Buildings Repairs and Maintenance - Reactive,2087,Estates Department (Previously Premises),919.70 
"Graham Asset Management, John Graham Holdings Limited",Management & Support Services,5,202212,23/03/2022,P6,9100541,"-14,898.68 ","14,898.68 ",2000,Buildings Repairs and Maintenance - Reactive,2087,Estates Department (Previously Premises),"1,398.76 "
"Graham Asset Management, John Graham Holdings Limited",Management & Support Services,5,202212,23/03/2022,P6,9100541,"-14,898.68 ","14,898.68 ",2000,Buildings Repairs and Maintenance - Reactive,2087,Estates Department (Previously Premises),"5,714.00 "
"Graham Asset Management, John Graham Holdings Limited",Management & Support Services,5,202212,23/03/2022,P6,9100542,"-1,138.62 ","1,138.62 ",2000,Buildings Repairs and Maintenance - Reactive,2087,Estates Department (Previously Premises),948.85 
"Graham Asset Management, John Graham Holdings Limited",Management & Support Services,5,202212,08/03/2022,P6,9100133,"-19,885.20 ","19,885.20 ",2050,Building Maintenance - Planned,2087,Estates Department (Previously Premises),32.13 
"Graham Asset Management, John Graham Holdings Limited",Management & Support Services,5,202212,08/03/2022,P6,9100133,"-19,885.20 ","19,885.20 ",2050,Building Maintenance - Planned,2087,Estates Department (Previously Premises),62.94 
"Graham Asset Management, John Graham Holdings Limited",Management & Support Services,5,202212,08/03/2022,P6,9100133,"-19,885.20 ","19,885.20 ",2050,Building Maintenance - Planned,2087,Estates Department (Previously Premises),110.80 
"Graham Asset Management, John Graham Holdings Limited",Management & Support Services,5,202212,08/03/2022,P6,9100133,"-19,885.20 ","19,885.20 ",2050,Building Maintenance - Planned,2087,Estates Department (Previously Premises),114.39 
"Graham Asset Management, John Graham Holdings Limited",Management & Support Services,5,202212,08/03/2022,P6,9100133,"-19,885.20 ","19,885.20 ",2050,Building Maintenance - Planned,2087,Estates Department (Previously Premises),234.72 
"Graham Asset Management, John Graham Holdings Limited",Management & Support Services,5,202212,08/03/2022,P6,9100133,"-19,885.20 ","19,885.20 ",2050,Building Maintenance - Planned,2087,Estates Department (Previously Premises),238.54 
"Graham Asset Management, John Graham Holdings Limited",Management & Support Services,5,202212,08/03/2022,P6,9100133,"-19,885.20 ","19,885.20 ",2050,Building Maintenance - Planned,2087,Estates Department (Previously Premises),254.63 
"Graham Asset Management, John Graham Holdings Limited",Management & Support Services,5,202212,08/03/2022,P6,9100133,"-19,885.20 ","19,885.20 ",2050,Building Maintenance - Planned,2087,Estates Department (Previously Premises),321.68 
"Graham Asset Management, John Graham Holdings Limited",Management & Support Services,5,202212,08/03/2022,P6,9100133,"-19,885.20 ","19,885.20 ",2050,Building Maintenance - Planned,2087,Estates Department (Previously Premises),375.89 
"Graham Asset Management, John Graham Holdings Limited",Management & Support Services,5,202212,08/03/2022,P6,9100133,"-19,885.20 ","19,885.20 ",2050,Building Maintenance - Planned,2087,Estates Department (Previously Premises),387.71 
"Graham Asset Management, John Graham Holdings Limited",Management & Support Services,5,202212,08/03/2022,P6,9100133,"-19,885.20 ","19,885.20 ",2050,Building Maintenance - Planned,2087,Estates Department (Previously Premises),387.88 
"Graham Asset Management, John Graham Holdings Limited",Management & Support Services,5,202212,08/03/2022,P6,9100133,"-19,885.20 ","19,885.20 ",2050,Building Maintenance - Planned,2087,Estates Department (Previously Premises),431.73 
"Graham Asset Management, John Graham Holdings Limited",Management & Support Services,5,202212,08/03/2022,P6,9100133,"-19,885.20 ","19,885.20 ",2050,Building Maintenance - Planned,2087,Estates Department (Previously Premises),490.37 
"Graham Asset Management, John Graham Holdings Limited",Management & Support Services,5,202212,08/03/2022,P6,9100133,"-19,885.20 ","19,885.20 ",2050,Building Maintenance - Planned,2087,Estates Department (Previously Premises),545.09 
"Graham Asset Management, John Graham Holdings Limited",Management & Support Services,5,202212,08/03/2022,P6,9100133,"-19,885.20 ","19,885.20 ",2050,Building Maintenance - Planned,2087,Estates Department (Previously Premises),718.12 
"Graham Asset Management, John Graham Holdings Limited",Management & Support Services,5,202212,08/03/2022,P6,9100133,"-19,885.20 ","19,885.20 ",2050,Building Maintenance - Planned,2087,Estates Department (Previously Premises),719.19 
"Graham Asset Management, John Graham Holdings Limited",Management & Support Services,5,202212,08/03/2022,P6,9100133,"-19,885.20 ","19,885.20 ",2050,Building Maintenance - Planned,2087,Estates Department (Previously Premises),812.53 
"Graham Asset Management, John Graham Holdings Limited",Management & Support Services,5,202212,08/03/2022,P6,9100133,"-19,885.20 ","19,885.20 ",2050,Building Maintenance - Planned,2087,Estates Department (Previously Premises),839.21 
"Graham Asset Management, John Graham Holdings Limited",Management & Support Services,5,202212,08/03/2022,P6,9100133,"-19,885.20 ","19,885.20 ",2050,Building Maintenance - Planned,2087,Estates Department (Previously Premises),851.05 
"Graham Asset Management, John Graham Holdings Limited",Management & Support Services,5,202212,08/03/2022,P6,9100133,"-19,885.20 ","19,885.20 ",2050,Building Maintenance - Planned,2087,Estates Department (Previously Premises),924.37 
"Graham Asset Management, John Graham Holdings Limited",Management & Support Services,5,202212,08/03/2022,P6,9100133,"-19,885.20 ","19,885.20 ",2050,Building Maintenance - Planned,2087,Estates Department (Previously Premises),997.65 
"Graham Asset Management, John Graham Holdings Limited",Management & Support Services,5,202212,08/03/2022,P6,9100133,"-19,885.20 ","19,885.20 ",2050,Building Maintenance - Planned,2087,Estates Department (Previously Premises),"1,024.34 "
"Graham Asset Management, John Graham Holdings Limited",Management & Support Services,5,202212,08/03/2022,P6,9100133,"-19,885.20 ","19,885.20 ",2050,Building Maintenance - Planned,2087,Estates Department (Previously Premises),"1,186.09 "
"Graham Asset Management, John Graham Holdings Limited",Management & Support Services,5,202212,08/03/2022,P6,9100133,"-19,885.20 ","19,885.20 ",2050,Building Maintenance - Planned,2087,Estates Department (Previously Premises),"1,242.59 "
"Graham Asset Management, John Graham Holdings Limited",Management & Support Services,5,202212,08/03/2022,P6,9100133,"-19,885.20 ","19,885.20 ",2050,Building Maintenance - Planned,2087,Estates Department (Previously Premises),"3,267.27 "
The Community Heartbeat Trust Charity/The Heartbeat Trust (Solutions) Limited,Management & Support Services,5,202212,08/03/2022,P6,9100288,"-3,726.00 ","3,726.00 ",2050,Building Maintenance - Planned,2087,Estates Department (Previously Premises),"3,105.00 "
"Graham Asset Management, John Graham Holdings Limited",Management & Support Services,5,202212,18/03/2022,P6,9100359,"-15,169.15 ","15,169.15 ",2050,Building Maintenance - Planned,2087,Estates Department (Previously Premises),48.63 
"Graham Asset Management, John Graham Holdings Limited",Management & Support Services,5,202212,18/03/2022,P6,9100359,"-15,169.15 ","15,169.15 ",2050,Building Maintenance - Planned,2087,Estates Department (Previously Premises),56.85 
"Graham Asset Management, John Graham Holdings Limited",Management & Support Services,5,202212,18/03/2022,P6,9100359,"-15,169.15 ","15,169.15 ",2050,Building Maintenance - Planned,2087,Estates Department (Previously Premises),187.54 
"Graham Asset Management, John Graham Holdings Limited",Management & Support Services,5,202212,18/03/2022,P6,9100359,"-15,169.15 ","15,169.15 ",2050,Building Maintenance - Planned,2087,Estates Department (Previously Premises),203.72 
"Graham Asset Management, John Graham Holdings Limited",Management & Support Services,5,202212,18/03/2022,P6,9100359,"-15,169.15 ","15,169.15 ",2050,Building Maintenance - Planned,2087,Estates Department (Previously Premises),208.31 
"Graham Asset Management, John Graham Holdings Limited",Management & Support Services,5,202212,18/03/2022,P6,9100359,"-15,169.15 ","15,169.15 ",2050,Building Maintenance - Planned,2087,Estates Department (Previously Premises),213.08 
"Graham Asset Management, John Graham Holdings Limited",Management & Support Services,5,202212,18/03/2022,P6,9100359,"-15,169.15 ","15,169.15 ",2050,Building Maintenance - Planned,2087,Estates Department (Previously Premises),217.23 
"Graham Asset Management, John Graham Holdings Limited",Management & Support Services,5,202212,18/03/2022,P6,9100359,"-15,169.15 ","15,169.15 ",2050,Building Maintenance - Planned,2087,Estates Department (Previously Premises),227.32 
"Graham Asset Management, John Graham Holdings Limited",Management & Support Services,5,202212,18/03/2022,P6,9100359,"-15,169.15 ","15,169.15 ",2050,Building Maintenance - Planned,2087,Estates Department (Previously Premises),231.33 
"Graham Asset Management, John Graham Holdings Limited",Management & Support Services,5,202212,18/03/2022,P6,9100359,"-15,169.15 ","15,169.15 ",2050,Building Maintenance - Planned,2087,Estates Department (Previously Premises),241.42 
"Graham Asset Management, John Graham Holdings Limited",Management & Support Services,5,202212,18/03/2022,P6,9100359,"-15,169.15 ","15,169.15 ",2050,Building Maintenance - Planned,2087,Estates Department (Previously Premises),266.07 
"Graham Asset Management, John Graham Holdings Limited",Management & Support Services,5,202212,18/03/2022,P6,9100359,"-15,169.15 ","15,169.15 ",2050,Building Maintenance - Planned,2087,Estates Department (Previously Premises),315.44 
"Graham Asset Management, John Graham Holdings Limited",Management & Support Services,5,202212,18/03/2022,P6,9100359,"-15,169.15 ","15,169.15 ",2050,Building Maintenance - Planned,2087,Estates Department (Previously Premises),379.89 
"Graham Asset Management, John Graham Holdings Limited",Management & Support Services,5,202212,18/03/2022,P6,9100359,"-15,169.15 ","15,169.15 ",2050,Building Maintenance - Planned,2087,Estates Department (Previously Premises),413.65 
"Graham Asset Management, John Graham Holdings Limited",Management & Support Services,5,202212,18/03/2022,P6,9100359,"-15,169.15 ","15,169.15 ",2050,Building Maintenance - Planned,2087,Estates Department (Previously Premises),421.24 
"Graham Asset Management, John Graham Holdings Limited",Management & Support Services,5,202212,18/03/2022,P6,9100359,"-15,169.15 ","15,169.15 ",2050,Building Maintenance - Planned,2087,Estates Department (Previously Premises),609.12 
"Graham Asset Management, John Graham Holdings Limited",Management & Support Services,5,202212,18/03/2022,P6,9100359,"-15,169.15 ","15,169.15 ",2050,Building Maintenance - Planned,2087,Estates Department (Previously Premises),620.49 
"Graham Asset Management, John Graham Holdings Limited",Management & Support Services,5,202212,18/03/2022,P6,9100359,"-15,169.15 ","15,169.15 ",2050,Building Maintenance - Planned,2087,Estates Department (Previously Premises),628.02 
"Graham Asset Management, John Graham Holdings Limited",Management & Support Services,5,202212,18/03/2022,P6,9100359,"-15,169.15 ","15,169.15 ",2050,Building Maintenance - Planned,2087,Estates Department (Previously Premises),651.29 
"Graham Asset Management, John Graham Holdings Limited",Management & Support Services,5,202212,18/03/2022,P6,9100359,"-15,169.15 ","15,169.15 ",2050,Building Maintenance - Planned,2087,Estates Department (Previously Premises),839.93 
"Graham Asset Management, John Graham Holdings Limited",Management & Support Services,5,202212,18/03/2022,P6,9100359,"-15,169.15 ","15,169.15 ",2050,Building Maintenance - Planned,2087,Estates Department (Previously Premises),840.78 
"Graham Asset Management, John Graham Holdings Limited",Management & Support Services,5,202212,18/03/2022,P6,9100359,"-15,169.15 ","15,169.15 ",2050,Building Maintenance - Planned,2087,Estates Department (Previously Premises),932.36 
"Graham Asset Management, John Graham Holdings Limited",Management & Support Services,5,202212,18/03/2022,P6,9100359,"-15,169.15 ","15,169.15 ",2050,Building Maintenance - Planned,2087,Estates Department (Previously Premises),"1,064.52 "
"Graham Asset Management, John Graham Holdings Limited",Management & Support Services,5,202212,18/03/2022,P6,9100359,"-15,169.15 ","15,169.15 ",2050,Building Maintenance - Planned,2087,Estates Department (Previously Premises),"1,335.21 "
"Graham Asset Management, John Graham Holdings Limited",Management & Support Services,5,202212,18/03/2022,P6,9100359,"-15,169.15 ","15,169.15 ",2050,Building Maintenance - Planned,2087,Estates Department (Previously Premises),"1,487.61 "
"Graham Asset Management, John Graham Holdings Limited",Management & Support Services,5,202212,18/03/2022,P6,9100360,"-45,479.65 ","45,479.65 ",2050,Building Maintenance - Planned,2087,Estates Department (Previously Premises),"37,899.71 "
"Graham Asset Management, John Graham Holdings Limited",Management & Support Services,5,202212,23/02/2022,P6,9100525,"-51,466.44 ","51,466.44 ",2050,Building Maintenance - Planned,1030,Service Development Centre,"42,888.70 "
BWT UK Limited,Operational Responses,5,202212,31/12/2021,P6,9100585,-581.69 ,581.69 ,2050,Building Maintenance - Planned,1001,Mansfield,35.00 
BWT UK Limited,Operational Responses,5,202212,31/12/2021,P6,9100585,-581.69 ,581.69 ,2050,Building Maintenance - Planned,1002,Blidworth,17.50 
BWT UK Limited,Operational Responses,5,202212,31/12/2021,P6,9100585,-581.69 ,581.69 ,2050,Building Maintenance - Planned,1003,London Road,29.75 
BWT UK Limited,Operational Responses,5,202212,31/12/2021,P6,9100585,-581.69 ,581.69 ,2050,Building Maintenance - Planned,1005,Ashfield,17.50 
BWT UK Limited,Operational Responses,5,202212,31/12/2021,P6,9100585,-581.69 ,581.69 ,2050,Building Maintenance - Planned,1006,Edwinstowe,26.25 
BWT UK Limited,Operational Responses,5,202212,31/12/2021,P6,9100585,-581.69 ,581.69 ,2050,Building Maintenance - Planned,1007,Warsop,8.75 
BWT UK Limited,Operational Responses,5,202212,31/12/2021,P6,9100585,-581.69 ,581.69 ,2050,Building Maintenance - Planned,1008,Worksop,17.50 
BWT UK Limited,Operational Responses,5,202212,31/12/2021,P6,9100585,-581.69 ,581.69 ,2050,Building Maintenance - Planned,1010,Harworth,8.75 
BWT UK Limited,Operational Responses,5,202212,31/12/2021,P6,9100585,-581.69 ,581.69 ,2050,Building Maintenance - Planned,1011,Misterton,8.75 
BWT UK Limited,Operational Responses,5,202212,31/12/2021,P6,9100585,-581.69 ,581.69 ,2050,Building Maintenance - Planned,1012,Retford,26.25 
BWT UK Limited,Operational Responses,5,202212,31/12/2021,P6,9100585,-581.69 ,581.69 ,2050,Building Maintenance - Planned,1013,Tuxford,8.75 
BWT UK Limited,Operational Responses,5,202212,31/12/2021,P6,9100585,-581.69 ,581.69 ,2050,Building Maintenance - Planned,1014,Southwell,8.75 
BWT UK Limited,Operational Responses,5,202212,31/12/2021,P6,9100585,-581.69 ,581.69 ,2050,Building Maintenance - Planned,1015,Collingham,8.75 
BWT UK Limited,Operational Responses,5,202212,31/12/2021,P6,9100585,-581.69 ,581.69 ,2050,Building Maintenance - Planned,1016,Newark,17.50 
BWT UK Limited,Operational Responses,5,202212,31/12/2021,P6,9100585,-581.69 ,581.69 ,2050,Building Maintenance - Planned,1017,Bingham,8.75 
BWT UK Limited,Operational Responses,5,202212,31/12/2021,P6,9100585,-581.69 ,581.69 ,2050,Building Maintenance - Planned,1019,West Bridgford,17.50 
BWT UK Limited,Operational Responses,5,202212,31/12/2021,P6,9100585,-581.69 ,581.69 ,2050,Building Maintenance - Planned,1020,Stockhill,17.50 
BWT UK Limited,Operational Responses,5,202212,31/12/2021,P6,9100585,-581.69 ,581.69 ,2050,Building Maintenance - Planned,1023,Stapleford,8.75 
BWT UK Limited,Operational Responses,5,202212,31/12/2021,P6,9100585,-581.69 ,581.69 ,2050,Building Maintenance - Planned,1024,Eastwood,8.75 
BWT UK Limited,Operational Responses,5,202212,31/12/2021,P6,9100585,-581.69 ,581.69 ,2050,Building Maintenance - Planned,1026,Arnold,17.50 
BWT UK Limited,Operational Responses,5,202212,31/12/2021,P6,9100585,-581.69 ,581.69 ,2050,Building Maintenance - Planned,1027,Carlton,17.50 
BWT UK Limited,Operational Responses,5,202212,31/12/2021,P6,9100585,-581.69 ,581.69 ,2050,Building Maintenance - Planned,1028,East Leake,8.75 
BWT UK Limited,Operational Responses,5,202212,31/12/2021,P6,9100585,-581.69 ,581.69 ,2050,Building Maintenance - Planned,1029,Highfields Station,35.00 
BWT UK Limited,Management & Support Services,5,202212,31/12/2021,P6,9100585,-581.69 ,581.69 ,2050,Building Maintenance - Planned,1030,Service Development Centre,26.25 
BWT UK Limited,Management & Support Services,5,202212,31/12/2021,P6,9100585,-581.69 ,581.69 ,2050,Building Maintenance - Planned,1035,Headquarters,78.75 
BWT UK Limited,Operational Responses,5,202212,28/02/2022,P6,9100586,-592.19 ,592.19 ,2050,Building Maintenance - Planned,1001,Mansfield,35.00 
BWT UK Limited,Operational Responses,5,202212,28/02/2022,P6,9100586,-592.19 ,592.19 ,2050,Building Maintenance - Planned,1002,Blidworth,17.50 
BWT UK Limited,Operational Responses,5,202212,28/02/2022,P6,9100586,-592.19 ,592.19 ,2050,Building Maintenance - Planned,1003,London Road,29.75 
BWT UK Limited,Operational Responses,5,202212,28/02/2022,P6,9100586,-592.19 ,592.19 ,2050,Building Maintenance - Planned,1005,Ashfield,17.50 
BWT UK Limited,Operational Responses,5,202212,28/02/2022,P6,9100586,-592.19 ,592.19 ,2050,Building Maintenance - Planned,1006,Edwinstowe,26.25 
BWT UK Limited,Operational Responses,5,202212,28/02/2022,P6,9100586,-592.19 ,592.19 ,2050,Building Maintenance - Planned,1007,Warsop,8.75 
BWT UK Limited,Operational Responses,5,202212,28/02/2022,P6,9100586,-592.19 ,592.19 ,2050,Building Maintenance - Planned,1008,Worksop,17.50 
BWT UK Limited,Operational Responses,5,202212,28/02/2022,P6,9100586,-592.19 ,592.19 ,2050,Building Maintenance - Planned,1010,Harworth,8.75 
BWT UK Limited,Operational Responses,5,202212,28/02/2022,P6,9100586,-592.19 ,592.19 ,2050,Building Maintenance - Planned,1011,Misterton,8.75 
BWT UK Limited,Operational Responses,5,202212,28/02/2022,P6,9100586,-592.19 ,592.19 ,2050,Building Maintenance - Planned,1012,Retford,26.25 
BWT UK Limited,Operational Responses,5,202212,28/02/2022,P6,9100586,-592.19 ,592.19 ,2050,Building Maintenance - Planned,1013,Tuxford,8.75 
BWT UK Limited,Operational Responses,5,202212,28/02/2022,P6,9100586,-592.19 ,592.19 ,2050,Building Maintenance - Planned,1014,Southwell,8.75 
BWT UK Limited,Operational Responses,5,202212,28/02/2022,P6,9100586,-592.19 ,592.19 ,2050,Building Maintenance - Planned,1015,Collingham,8.75 
BWT UK Limited,Operational Responses,5,202212,28/02/2022,P6,9100586,-592.19 ,592.19 ,2050,Building Maintenance - Planned,1016,Newark,17.50 
BWT UK Limited,Operational Responses,5,202212,28/02/2022,P6,9100586,-592.19 ,592.19 ,2050,Building Maintenance - Planned,1017,Bingham,8.75 
BWT UK Limited,Operational Responses,5,202212,28/02/2022,P6,9100586,-592.19 ,592.19 ,2050,Building Maintenance - Planned,1019,West Bridgford,17.50 
BWT UK Limited,Operational Responses,5,202212,28/02/2022,P6,9100586,-592.19 ,592.19 ,2050,Building Maintenance - Planned,1020,Stockhill,17.50 
BWT UK Limited,Operational Responses,5,202212,28/02/2022,P6,9100586,-592.19 ,592.19 ,2050,Building Maintenance - Planned,1023,Stapleford,8.75 
BWT UK Limited,Operational Responses,5,202212,28/02/2022,P6,9100586,-592.19 ,592.19 ,2050,Building Maintenance - Planned,1024,Eastwood,8.75 
BWT UK Limited,Operational Responses,5,202212,28/02/2022,P6,9100586,-592.19 ,592.19 ,2050,Building Maintenance - Planned,1025,Hucknall,8.75 
BWT UK Limited,Operational Responses,5,202212,28/02/2022,P6,9100586,-592.19 ,592.19 ,2050,Building Maintenance - Planned,1026,Arnold,17.50 
BWT UK Limited,Operational Responses,5,202212,28/02/2022,P6,9100586,-592.19 ,592.19 ,2050,Building Maintenance - Planned,1027,Carlton,17.50 
BWT UK Limited,Operational Responses,5,202212,28/02/2022,P6,9100586,-592.19 ,592.19 ,2050,Building Maintenance - Planned,1028,East Leake,8.75 
BWT UK Limited,Operational Responses,5,202212,28/02/2022,P6,9100586,-592.19 ,592.19 ,2050,Building Maintenance - Planned,1029,Highfields Station,35.00 
BWT UK Limited,Management & Support Services,5,202212,28/02/2022,P6,9100586,-592.19 ,592.19 ,2050,Building Maintenance - Planned,1030,Service Development Centre,26.25 
BWT UK Limited,Management & Support Services,5,202212,28/02/2022,P6,9100586,-592.19 ,592.19 ,2050,Building Maintenance - Planned,1035,Headquarters,78.75 
EDF Energy,Operational Responses,1,202212,10/01/2022,P6,9099993,-399.24 ,399.24 ,2100,Electricity,1007,Warsop,1.05 
EDF Energy,Operational Responses,1,202212,10/01/2022,P6,9099993,-399.24 ,399.24 ,2100,Electricity,1007,Warsop,331.82 
EDF Energy,Operational Responses,1,202212,03/02/2022,P6,9099994,"-20,670.28 ","20,670.28 ",2100,Electricity,1003,London Road,"1,827.80 "
EDF Energy,Operational Responses,1,202212,03/02/2022,P6,9099994,"-20,670.28 ","20,670.28 ",2100,Electricity,1012,Retford,849.77 
EDF Energy,Operational Responses,1,202212,03/02/2022,P6,9099994,"-20,670.28 ","20,670.28 ",2100,Electricity,1016,Newark,882.85 
EDF Energy,Operational Responses,1,202212,03/02/2022,P6,9099994,"-20,670.28 ","20,670.28 ",2100,Electricity,1027,Carlton,"2,461.49 "
EDF Energy,Operational Responses,1,202212,03/02/2022,P6,9099994,"-20,670.28 ","20,670.28 ",2100,Electricity,1029,Highfields Station,"5,008.58 "
EDF Energy,Management & Support Services,1,202212,03/02/2022,P6,9099994,"-20,670.28 ","20,670.28 ",2100,Electricity,1030,Service Development Centre,"2,268.76 "
EDF Energy,Management & Support Services,1,202212,03/02/2022,P6,9099994,"-20,670.28 ","20,670.28 ",2100,Electricity,1035,Headquarters,20.82 
EDF Energy,Management & Support Services,1,202212,03/02/2022,P6,9099994,"-20,670.28 ","20,670.28 ",2100,Electricity,1035,Headquarters,"3,908.64 "
EDF Energy,Operational Responses,1,202212,01/02/2022,P6,9099995,"-1,828.64 ","1,828.64 ",2100,Electricity,1008,Worksop,6.35 
EDF Energy,Operational Responses,1,202212,01/02/2022,P6,9099995,"-1,828.64 ","1,828.64 ",2100,Electricity,1008,Worksop,"1,518.58 "
EDF Energy,Operational Responses,1,202212,01/02/2022,P6,9099996,-721.20 ,721.20 ,2100,Electricity,1013,Tuxford,1.23 
EDF Energy,Operational Responses,1,202212,01/02/2022,P6,9099996,-721.20 ,721.20 ,2100,Electricity,1013,Tuxford,599.98 
EDF Energy,Operational Responses,1,202212,08/12/2021,P6,9099997,-392.87 ,392.87 ,2100,Electricity,1007,Warsop,327.39 
EDF Energy,Operational Responses,1,202212,08/12/2021,P6,9099998,"-1,628.49 ","1,628.49 ",2100,Electricity,1008,Worksop,"1,357.08 "
EDF Energy,Operational Responses,1,202212,07/01/2022,P6,9099999,"-1,257.59 ","1,257.59 ",2100,Electricity,1008,Worksop,"1,047.99 "
EDF Energy,Prevention & Education,1,202212,01/02/2022,P6,9100000,"-1,237.15 ","1,237.15 ",2100,Electricity,1036,Clifton Community Safety Centre,11.99 
EDF Energy,Prevention & Education,1,202212,01/02/2022,P6,9100000,"-1,237.15 ","1,237.15 ",2100,Electricity,1036,Clifton Community Safety Centre,"1,020.97 "
EDF Energy,Operational Responses,1,202212,08/02/2022,P6,9100020,-431.56 ,431.56 ,2100,Electricity,1007,Warsop,0.46 
EDF Energy,Operational Responses,1,202212,08/02/2022,P6,9100020,-431.56 ,431.56 ,2100,Electricity,1007,Warsop,359.25 
EDF Energy,Operational Responses,1,202212,01/02/2022,P6,9100021,-301.81 ,301.81 ,2100,Electricity,1015,Collingham,2.68 
EDF Energy,Operational Responses,1,202212,01/02/2022,P6,9100021,-301.81 ,301.81 ,2100,Electricity,1015,Collingham,249.27 
EDF Energy,Operational Responses,1,202212,01/02/2022,P6,9100022,"-1,217.53 ","1,217.53 ",2100,Electricity,1026,Arnold,7.25 
EDF Energy,Operational Responses,1,202212,01/02/2022,P6,9100022,"-1,217.53 ","1,217.53 ",2100,Electricity,1026,Arnold,"1,008.57 "
EDF Energy,Operational Responses,1,202212,07/02/2022,P6,9100026,"-2,023.92 ","2,023.92 ",2100,Electricity,1001,Mansfield,"1,686.60 "
EDF Energy,Operational Responses,1,202212,01/02/2022,P6,9100028,-286.04 ,286.04 ,2100,Electricity,1001,Mansfield,2.39 
EDF Energy,Operational Responses,1,202212,01/02/2022,P6,9100028,-286.04 ,286.04 ,2100,Electricity,1001,Mansfield,236.38 
EDF Energy,Operational Responses,1,202212,10/02/2022,P6,9100029,"-1,292.75 ","1,292.75 ",2100,Electricity,1028,East Leake,"1,077.29 "
EDF Energy,Operational Responses,1,202212,01/02/2022,P6,9100038,"-4,460.09 ","4,460.09 ",2100,Electricity,1020,Stockhill,40.75 
EDF Energy,Operational Responses,1,202212,01/02/2022,P6,9100038,"-4,460.09 ","4,460.09 ",2100,Electricity,1020,Stockhill,"3,682.78 "
EDF Energy,Operational Responses,1,202212,07/02/2022,P6,9100153,"-1,820.90 ","1,820.90 ",2100,Electricity,1001,Mansfield,8.46 
EDF Energy,Operational Responses,1,202212,07/02/2022,P6,9100153,"-1,820.90 ","1,820.90 ",2100,Electricity,1001,Mansfield,"1,510.37 "
EDF Energy,Operational Responses,1,202212,07/03/2022,P6,9100155,"-16,655.34 ","16,655.34 ",2100,Electricity,1003,London Road,"1,587.48 "
EDF Energy,Operational Responses,1,202212,07/03/2022,P6,9100155,"-16,655.34 ","16,655.34 ",2100,Electricity,1012,Retford,712.10 
EDF Energy,Operational Responses,1,202212,07/03/2022,P6,9100155,"-16,655.34 ","16,655.34 ",2100,Electricity,1016,Newark,735.61 
EDF Energy,Operational Responses,1,202212,07/03/2022,P6,9100155,"-16,655.34 ","16,655.34 ",2100,Electricity,1027,Carlton,"1,737.44 "
EDF Energy,Operational Responses,1,202212,07/03/2022,P6,9100155,"-16,655.34 ","16,655.34 ",2100,Electricity,1029,Highfields Station,"3,901.10 "
EDF Energy,Management & Support Services,1,202212,07/03/2022,P6,9100155,"-16,655.34 ","16,655.34 ",2100,Electricity,1030,Service Development Centre,"2,008.89 "
EDF Energy,Management & Support Services,1,202212,07/03/2022,P6,9100155,"-16,655.34 ","16,655.34 ",2100,Electricity,1035,Headquarters,12.86 
EDF Energy,Management & Support Services,1,202212,07/03/2022,P6,9100155,"-16,655.34 ","16,655.34 ",2100,Electricity,1035,Headquarters,"3,186.11 "
EDF Energy,Operational Responses,1,202212,08/03/2022,P6,9100232,-347.23 ,347.23 ,2100,Electricity,1007,Warsop,1.05 
EDF Energy,Operational Responses,1,202212,08/03/2022,P6,9100232,-347.23 ,347.23 ,2100,Electricity,1007,Warsop,288.49 
EDF Energy,Operational Responses,1,202212,03/03/2022,P6,9100267,"-1,616.96 ","1,616.96 ",2100,Electricity,1024,Eastwood,1.65 
EDF Energy,Operational Responses,1,202212,03/03/2022,P6,9100267,"-1,616.96 ","1,616.96 ",2100,Electricity,1024,Eastwood,"1,346.09 "
EDF Energy,Operational Responses,1,202212,02/08/2021,P6,9100378,-897.46 ,897.46 ,2100,Electricity,1020,Stockhill,747.88 
EDF Energy,Operational Responses,1,202212,02/08/2021,P6,9100379,-964.82 ,964.82 ,2100,Electricity,1020,Stockhill,804.02 
EDF Energy,Operational Responses,1,202212,02/08/2021,P6,9100380,"-1,101.67 ","1,101.67 ",2100,Electricity,1020,Stockhill,918.06 
EDF Energy,Operational Responses,1,202212,08/10/2021,P6,9100381,-965.30 ,965.30 ,2100,Electricity,1020,Stockhill,8.23 
EDF Energy,Operational Responses,1,202212,08/10/2021,P6,9100381,-965.30 ,965.30 ,2100,Electricity,1020,Stockhill,797.56 
EDF Energy,Operational Responses,1,202212,02/11/2021,P6,9100382,"-1,451.74 ","1,451.74 ",2100,Electricity,1020,Stockhill,6.94 
EDF Energy,Operational Responses,1,202212,02/11/2021,P6,9100382,"-1,451.74 ","1,451.74 ",2100,Electricity,1020,Stockhill,"1,204.00 "
EDF Energy,Operational Responses,1,202212,01/03/2022,P6,9100433,"-1,001.19 ","1,001.19 ",2100,Electricity,1029,Highfields Station,12.41 
EDF Energy,Operational Responses,1,202212,01/03/2022,P6,9100433,"-1,001.19 ","1,001.19 ",2100,Electricity,1029,Highfields Station,823.98 
EDF Energy,Operational Responses,1,202212,01/03/2022,P6,9100434,-265.35 ,265.35 ,2100,Electricity,1015,Collingham,3.11 
EDF Energy,Operational Responses,1,202212,01/03/2022,P6,9100434,-265.35 ,265.35 ,2100,Electricity,1015,Collingham,218.53 
EDF Energy,Operational Responses,1,202212,01/03/2022,P6,9100437,-259.32 ,259.32 ,2100,Electricity,1014,Southwell,1.98 
EDF Energy,Operational Responses,1,202212,01/03/2022,P6,9100437,-259.32 ,259.32 ,2100,Electricity,1014,Southwell,214.45 
EDF Energy,Operational Responses,1,202212,01/03/2022,P6,9100439,"-1,609.86 ","1,609.86 ",2100,Electricity,1008,Worksop,15.05 
EDF Energy,Operational Responses,1,202212,01/03/2022,P6,9100439,"-1,609.86 ","1,609.86 ",2100,Electricity,1008,Worksop,"1,329.01 "
EDF Energy,Operational Responses,1,202212,01/03/2022,P6,9100440,-547.69 ,547.69 ,2100,Electricity,1013,Tuxford,456.41 
Total Gas & Power Limited,Operational Responses,5,202212,21/10/2021,P6,9099985,"-2,029.46 ","2,029.46 ",2101,Gas,1020,Stockhill,"1,691.22 "
Total Gas & Power Limited,Operational Responses,5,202212,21/10/2021,P6,9099986,"-1,323.19 ","1,323.19 ",2101,Gas,1020,Stockhill,"1,102.66 "
Total Gas & Power Limited,Operational Responses,5,202212,21/10/2021,P6,9099987,-796.45 ,796.45 ,2101,Gas,1020,Stockhill,663.71 
Total Gas & Power Limited,Operational Responses,5,202212,21/10/2021,P6,9099988,"-1,305.76 ","1,305.76 ",2101,Gas,1020,Stockhill,"1,088.13 "
Total Gas & Power Limited,Operational Responses,5,202212,21/10/2021,P6,9099989,"-1,197.31 ","1,197.31 ",2101,Gas,1020,Stockhill,997.76 
Total Gas & Power Limited,Operational Responses,5,202212,11/02/2022,P6,9099990,"-1,736.27 ","1,736.27 ",2101,Gas,1020,Stockhill,"1,446.90 "
Total Gas & Power Limited,Operational Responses,5,202212,21/10/2021,P6,9099991,"-1,368.55 ","1,368.55 ",2101,Gas,1020,Stockhill,"1,140.46 "
Total Gas & Power Limited,Prevention & Education,5,202212,11/03/2022,P6,9100247,-327.31 ,327.31 ,2101,Gas,1036,Clifton Community Safety Centre,272.76 
Total Gas & Power Limited,Operational Responses,5,202212,11/03/2022,P6,9100248,"-2,391.47 ","2,391.47 ",2101,Gas,1015,Collingham,"1,992.89 "
Total Gas & Power Limited,Operational Responses,5,202212,11/03/2022,P6,9100251,-450.04 ,450.04 ,2101,Gas,1024,Eastwood,375.03 
Total Gas & Power Limited,Operational Responses,5,202212,11/03/2022,P6,9100253,-781.98 ,781.98 ,2101,Gas,1026,Arnold,651.65 
Total Gas & Power Limited,Operational Responses,5,202212,11/03/2022,P6,9100254,-343.59 ,343.59 ,2101,Gas,1016,Newark,286.32 
Total Gas & Power Limited,Operational Responses,5,202212,11/03/2022,P6,9100256,-463.39 ,463.39 ,2101,Gas,1012,Retford,386.16 
Total Gas & Power Limited,Operational Responses,5,202212,11/03/2022,P6,9100257,-577.36 ,577.36 ,2101,Gas,1027,Carlton,481.13 
Total Gas & Power Limited,Operational Responses,5,202212,11/03/2022,P6,9100260,-655.42 ,655.42 ,2101,Gas,1019,West Bridgford,546.19 
Total Gas & Power Limited,Management & Support Services,5,202212,11/03/2022,P6,9100261,-633.84 ,633.84 ,2101,Gas,1030,Service Development Centre,528.20 
Total Gas & Power Limited,Operational Responses,5,202212,11/03/2022,P6,9100262,"-1,006.45 ","1,006.45 ",2101,Gas,1029,Highfields Station,838.71 
Total Gas & Power Limited,Operational Responses,5,202212,11/03/2022,P6,9100263,"-1,072.95 ","1,072.95 ",2101,Gas,1008,Worksop,894.13 
Total Gas & Power Limited,Operational Responses,5,202212,11/03/2022,P6,9100264,-340.57 ,340.57 ,2101,Gas,1010,Harworth,283.80 
Total Gas & Power Limited,Operational Responses,5,202212,11/03/2022,P6,9100265,-904.34 ,904.34 ,2101,Gas,1005,Ashfield,753.62 
Total Gas & Power Limited,Operational Responses,5,202212,11/03/2022,P6,9100266,-317.31 ,317.31 ,2101,Gas,1002,Blidworth,264.43 
Total Gas & Power Limited,Operational Responses,5,202212,11/03/2022,P6,9100268,-722.63 ,722.63 ,2101,Gas,1006,Edwinstowe,602.19 
Total Gas & Power Limited,Operational Responses,5,202212,11/03/2022,P6,9100269,"-1,449.46 ","1,449.46 ",2101,Gas,1001,Mansfield,"1,207.89 "
Total Gas & Power Limited,Operational Responses,5,202212,11/03/2022,P6,9100270,-300.84 ,300.84 ,2101,Gas,1001,Mansfield,250.70 
Total Gas & Power Limited,Operational Responses,5,202212,05/03/2022,P6,9100376,"-1,471.67 ","1,471.67 ",2101,Gas,1005,Ashfield,"1,226.39 "
Total Gas & Power Limited,Operational Responses,5,202212,05/03/2022,P6,9100377,"-1,358.92 ","1,358.92 ",2101,Gas,1005,Ashfield,"1,132.43 "
Total Gas & Power Limited,Operational Responses,5,202212,13/01/2022,P6,9100385,"-1,646.02 ","1,646.02 ",2101,Gas,1020,Stockhill,"1,371.68 "
Total Gas & Power Limited,Operational Responses,5,202212,21/10/2021,P6,9100386,-460.35 ,460.35 ,2101,Gas,1020,Stockhill,383.63 
Total Gas & Power Limited,Operational Responses,5,202212,11/03/2022,P6,9100587,"-1,349.40 ","1,349.40 ",2101,Gas,1020,Stockhill,"1,124.50 "
Total Gas & Power Limited,Operational Responses,5,202212,05/03/2022,P6,9100373,"1,483.88 ","-1,483.88 ",2101,Gas,1005,Ashfield,"-1,236.57 "
Castle Water Limited,Operational Responses,5,202212,03/02/2022,P6,9100023,-484.57 ,484.57 ,2103,Water Rates,1008,Worksop,484.57 
Castle Water Limited,Operational Responses,5,202212,04/01/2022,P6,9100387,-344.17 ,344.17 ,2103,Water Rates,1016,Newark,100.53 
Castle Water Limited,Operational Responses,5,202212,02/02/2022,P6,9100388,-347.50 ,347.50 ,2103,Water Rates,1016,Newark,0.45 
Castle Water Limited,Operational Responses,5,202212,02/02/2022,P6,9100388,-347.50 ,347.50 ,2103,Water Rates,1016,Newark,102.10 
Castle Water Limited,Operational Responses,5,202212,01/03/2022,P6,9100389,-313.21 ,313.21 ,2103,Water Rates,1016,Newark,2.05 
Castle Water Limited,Operational Responses,5,202212,01/03/2022,P6,9100389,-313.21 ,313.21 ,2103,Water Rates,1016,Newark,90.97 
Castle Water Limited,Operational Responses,5,202212,22/11/2021,P6,9100390,-336.05 ,336.05 ,2103,Water Rates,1016,Newark,98.91 
Castle Water Limited,Operational Responses,5,202212,02/02/2022,P6,9100391,"-1,281.39 ","1,281.39 ",2103,Water Rates,1029,Highfields Station,0.32 
Castle Water Limited,Operational Responses,5,202212,02/02/2022,P6,9100391,"-1,281.39 ","1,281.39 ",2103,Water Rates,1029,Highfields Station,781.98 
Castle Water Limited,Operational Responses,5,202212,01/03/2022,P6,9100442,-273.99 ,273.99 ,2103,Water Rates,1026,Arnold,115.22 
Castle Water Limited,Operational Responses,5,202212,01/03/2022,P6,9100447,-293.25 ,293.25 ,2103,Water Rates,1008,Worksop,293.25 
Castle Water Limited,Operational Responses,5,202212,01/03/2022,P6,9100448,-440.28 ,440.28 ,2103,Water Rates,1019,West Bridgford,440.28 
Castle Water Limited,Operational Responses,5,202212,01/03/2022,P6,9100453,-358.06 ,358.06 ,2103,Water Rates,1001,Mansfield,358.06 
Castle Water Limited,Management & Support Services,5,202212,01/03/2022,P6,9100454,-300.72 ,300.72 ,2103,Water Rates,1035,Headquarters,300.72 
Castle Water Limited,Operational Responses,5,202212,01/03/2022,P6,9100455,-340.25 ,340.25 ,2103,Water Rates,1029,Highfields Station,340.25 
Castle Water Limited,Operational Responses,5,202212,01/03/2022,P6,9100457,-414.07 ,414.07 ,2103,Water Rates,1016,Newark,414.07 
Castle Water Limited,Operational Responses,5,202212,04/01/2022,P6,9100387,-344.17 ,344.17 ,2104,Sewerage and Environmental,1016,Newark,223.54 
Castle Water Limited,Operational Responses,5,202212,02/02/2022,P6,9100388,-347.50 ,347.50 ,2104,Sewerage and Environmental,1016,Newark,224.54 
Castle Water Limited,Operational Responses,5,202212,01/03/2022,P6,9100389,-313.21 ,313.21 ,2104,Sewerage and Environmental,1016,Newark,202.00 
Castle Water Limited,Operational Responses,5,202212,22/11/2021,P6,9100390,-336.05 ,336.05 ,2104,Sewerage and Environmental,1016,Newark,217.36 
Castle Water Limited,Operational Responses,5,202212,02/02/2022,P6,9100391,"-1,281.39 ","1,281.39 ",2104,Sewerage and Environmental,1029,Highfields Station,499.09 
Castle Water Limited,Operational Responses,5,202212,01/03/2022,P6,9100442,-273.99 ,273.99 ,2104,Sewerage and Environmental,1026,Arnold,158.77 
East Midlands Ambulance Service NHS Trust,Operational Responses,1,202212,14/03/2022,P6,9100550,"-13,081.04 ","13,081.04 ",2105,Business Rates,1025,Hucknall,"10,900.87 "
Srcl Ltd,Operational Responses,1,202212,31/01/2022,P6,9100003,-461.95 ,461.95 ,2106,Refuse / Trade Waste Collection,1001,Mansfield,52.12 
Srcl Ltd,Operational Responses,1,202212,31/01/2022,P6,9100003,-461.95 ,461.95 ,2106,Refuse / Trade Waste Collection,1003,London Road,52.12 
Srcl Ltd,Operational Responses,1,202212,31/01/2022,P6,9100003,-461.95 ,461.95 ,2106,Refuse / Trade Waste Collection,1008,Worksop,52.12 
Srcl Ltd,Operational Responses,1,202212,31/01/2022,P6,9100003,-461.95 ,461.95 ,2106,Refuse / Trade Waste Collection,1016,Newark,36.12 
Srcl Ltd,Operational Responses,1,202212,31/01/2022,P6,9100003,-461.95 ,461.95 ,2106,Refuse / Trade Waste Collection,1020,Stockhill,52.12 
Srcl Ltd,Operational Responses,1,202212,31/01/2022,P6,9100003,-461.95 ,461.95 ,2106,Refuse / Trade Waste Collection,1027,Carlton,52.12 
Srcl Ltd,Operational Responses,1,202212,31/01/2022,P6,9100003,-461.95 ,461.95 ,2106,Refuse / Trade Waste Collection,1029,Highfields Station,52.12 
Srcl Ltd,Management & Support Services,1,202212,31/01/2022,P6,9100003,-461.95 ,461.95 ,2106,Refuse / Trade Waste Collection,2061,Occupational Health & Fitness,36.12 
Srcl Ltd,Operational Responses,1,202212,31/12/2021,P6,9100050,-341.81 ,341.81 ,2106,Refuse / Trade Waste Collection,1003,London Road,36.12 
Srcl Ltd,Operational Responses,1,202212,31/12/2021,P6,9100050,-341.81 ,341.81 ,2106,Refuse / Trade Waste Collection,1005,Ashfield,36.12 
Srcl Ltd,Operational Responses,1,202212,31/12/2021,P6,9100050,-341.81 ,341.81 ,2106,Refuse / Trade Waste Collection,1012,Retford,36.12 
Srcl Ltd,Operational Responses,1,202212,31/12/2021,P6,9100050,-341.81 ,341.81 ,2106,Refuse / Trade Waste Collection,1016,Newark,36.12 
Srcl Ltd,Operational Responses,1,202212,31/12/2021,P6,9100050,-341.81 ,341.81 ,2106,Refuse / Trade Waste Collection,1020,Stockhill,52.12 
Srcl Ltd,Operational Responses,1,202212,31/12/2021,P6,9100050,-341.81 ,341.81 ,2106,Refuse / Trade Waste Collection,1026,Arnold,52.12 
Srcl Ltd,Management & Support Services,1,202212,31/12/2021,P6,9100050,-341.81 ,341.81 ,2106,Refuse / Trade Waste Collection,2061,Occupational Health & Fitness,36.12 
Veolia ES UK Limited,Management & Support Services,5,202212,31/12/2021,P6,9100054,"-1,826.63 ","1,826.63 ",2106,Refuse / Trade Waste Collection,2086,Procurement,"1,522.19 "
Srcl Ltd,Operational Responses,1,202212,28/02/2022,P6,9100151,-356.06 ,356.06 ,2106,Refuse / Trade Waste Collection,1005,Ashfield,52.12 
Srcl Ltd,Operational Responses,1,202212,28/02/2022,P6,9100151,-356.06 ,356.06 ,2106,Refuse / Trade Waste Collection,1008,Worksop,52.12 
Srcl Ltd,Operational Responses,1,202212,28/02/2022,P6,9100151,-356.06 ,356.06 ,2106,Refuse / Trade Waste Collection,1016,Newark,52.12 
Srcl Ltd,Operational Responses,1,202212,28/02/2022,P6,9100151,-356.06 ,356.06 ,2106,Refuse / Trade Waste Collection,1020,Stockhill,52.12 
Srcl Ltd,Operational Responses,1,202212,28/02/2022,P6,9100151,-356.06 ,356.06 ,2106,Refuse / Trade Waste Collection,1026,Arnold,52.12 
Srcl Ltd,Management & Support Services,1,202212,28/02/2022,P6,9100151,-356.06 ,356.06 ,2106,Refuse / Trade Waste Collection,2061,Occupational Health & Fitness,36.12 
Veolia ES UK Limited,Management & Support Services,5,202212,30/11/2021,P6,9100208,"-1,699.43 ","1,699.43 ",2106,Refuse / Trade Waste Collection,2086,Procurement,"1,416.19 "
Shred IT Limited,Management & Support Services,5,202212,28/02/2022,P6,9100395,"-1,573.76 ","1,573.76 ",2106,Refuse / Trade Waste Collection,2086,Procurement,"1,311.46 "
Shred IT Limited,Management & Support Services,5,202212,31/12/2021,P6,9100409,"-1,631.16 ","1,631.16 ",2106,Refuse / Trade Waste Collection,2086,Procurement,"1,359.30 "
Citron Hygiene UK Limited,Management & Support Services,5,202212,25/03/2022,P6,9100626,-600.66 ,600.66 ,2106,Refuse / Trade Waste Collection,2086,Procurement,500.55 
Veolia ES UK Limited,Management & Support Services,5,202212,30/03/2022,P6,9100676,"-1,607.86 ","1,607.86 ",2106,Refuse / Trade Waste Collection,2086,Procurement,"1,339.88 "
Veolia ES UK Limited,Management & Support Services,5,202212,31/03/2022,P6,9100690,"-1,910.79 ","1,910.79 ",2106,Refuse / Trade Waste Collection,2086,Procurement,"1,592.32 "
NCC Sundry Debtors,Management & Support Services,4,202212,01/03/2022,P6,9100060,"-1,131.62 ","1,131.62 ",2201,Grounds Maintenance,1035,Headquarters,943.02 
NCC Sundry Debtors,Operational Responses,4,202212,01/03/2022,P6,9100192,"-1,757.15 ","1,757.15 ",2201,Grounds Maintenance,1001,Mansfield,38.54 
NCC Sundry Debtors,Operational Responses,4,202212,01/03/2022,P6,9100192,"-1,757.15 ","1,757.15 ",2201,Grounds Maintenance,1002,Blidworth,66.02 
NCC Sundry Debtors,Operational Responses,4,202212,01/03/2022,P6,9100192,"-1,757.15 ","1,757.15 ",2201,Grounds Maintenance,1003,London Road,35.43 
NCC Sundry Debtors,Operational Responses,4,202212,01/03/2022,P6,9100192,"-1,757.15 ","1,757.15 ",2201,Grounds Maintenance,1005,Ashfield,177.17 
NCC Sundry Debtors,Operational Responses,4,202212,01/03/2022,P6,9100192,"-1,757.15 ","1,757.15 ",2201,Grounds Maintenance,1006,Edwinstowe,37.47 
NCC Sundry Debtors,Operational Responses,4,202212,01/03/2022,P6,9100192,"-1,757.15 ","1,757.15 ",2201,Grounds Maintenance,1007,Warsop,3.24 
NCC Sundry Debtors,Operational Responses,4,202212,01/03/2022,P6,9100192,"-1,757.15 ","1,757.15 ",2201,Grounds Maintenance,1008,Worksop,34.99 
NCC Sundry Debtors,Operational Responses,4,202212,01/03/2022,P6,9100192,"-1,757.15 ","1,757.15 ",2201,Grounds Maintenance,1010,Harworth,41.13 
NCC Sundry Debtors,Operational Responses,4,202212,01/03/2022,P6,9100192,"-1,757.15 ","1,757.15 ",2201,Grounds Maintenance,1011,Misterton,38.18 
NCC Sundry Debtors,Operational Responses,4,202212,01/03/2022,P6,9100192,"-1,757.15 ","1,757.15 ",2201,Grounds Maintenance,1012,Retford,25.61 
NCC Sundry Debtors,Operational Responses,4,202212,01/03/2022,P6,9100192,"-1,757.15 ","1,757.15 ",2201,Grounds Maintenance,1013,Tuxford,26.62 
NCC Sundry Debtors,Operational Responses,4,202212,01/03/2022,P6,9100192,"-1,757.15 ","1,757.15 ",2201,Grounds Maintenance,1014,Southwell,25.30 
NCC Sundry Debtors,Operational Responses,4,202212,01/03/2022,P6,9100192,"-1,757.15 ","1,757.15 ",2201,Grounds Maintenance,1015,Collingham,14.81 
NCC Sundry Debtors,Operational Responses,4,202212,01/03/2022,P6,9100192,"-1,757.15 ","1,757.15 ",2201,Grounds Maintenance,1016,Newark,36.76 
NCC Sundry Debtors,Operational Responses,4,202212,01/03/2022,P6,9100192,"-1,757.15 ","1,757.15 ",2201,Grounds Maintenance,1017,Bingham,62.36 
NCC Sundry Debtors,Operational Responses,4,202212,01/03/2022,P6,9100192,"-1,757.15 ","1,757.15 ",2201,Grounds Maintenance,1019,West Bridgford,105.73 
NCC Sundry Debtors,Operational Responses,4,202212,01/03/2022,P6,9100192,"-1,757.15 ","1,757.15 ",2201,Grounds Maintenance,1020,Stockhill,210.32 
NCC Sundry Debtors,Operational Responses,4,202212,01/03/2022,P6,9100192,"-1,757.15 ","1,757.15 ",2201,Grounds Maintenance,1023,Stapleford,78.35 
NCC Sundry Debtors,Operational Responses,4,202212,01/03/2022,P6,9100192,"-1,757.15 ","1,757.15 ",2201,Grounds Maintenance,1024,Eastwood,26.37 
NCC Sundry Debtors,Operational Responses,4,202212,01/03/2022,P6,9100192,"-1,757.15 ","1,757.15 ",2201,Grounds Maintenance,1026,Arnold,11.00 
NCC Sundry Debtors,Operational Responses,4,202212,01/03/2022,P6,9100192,"-1,757.15 ","1,757.15 ",2201,Grounds Maintenance,1027,Carlton,9.94 
NCC Sundry Debtors,Operational Responses,4,202212,01/03/2022,P6,9100192,"-1,757.15 ","1,757.15 ",2201,Grounds Maintenance,1028,East Leake,129.31 
NCC Sundry Debtors,Operational Responses,4,202212,01/03/2022,P6,9100192,"-1,757.15 ","1,757.15 ",2201,Grounds Maintenance,1029,Highfields Station,77.08 
NCC Sundry Debtors,Management & Support Services,4,202212,01/03/2022,P6,9100192,"-1,757.15 ","1,757.15 ",2201,Grounds Maintenance,1030,Service Development Centre,152.56 
NCC Sundry Debtors,Management & Support Services,4,202212,01/01/2022,P6,9100194,"-1,131.62 ","1,131.62 ",2201,Grounds Maintenance,1035,Headquarters,943.02 
Complete Business Solutions Group Ltd,Operational Responses,1,202212,22/02/2022,P6,9100007,-330.37 ,330.37 ,2203,Cleaning Materials,1016,Newark,275.31 
Complete Business Solutions Group Ltd,Operational Responses,1,202212,17/03/2022,P6,9100318,-439.01 ,439.01 ,2203,Cleaning Materials,1020,Stockhill,365.84 
NCC Sundry Debtors,Management & Support Services,4,202212,18/02/2022,P6,9100086,"-1,155.60 ","1,155.60 ",2204,Contract Cleaning,1030,Service Development Centre,963.00 
Falcon Environmental Limited,Management & Support Services,5,202212,27/02/2022,P6,9100087,-672.00 ,672.00 ,2204,Contract Cleaning,2086,Procurement,560.00 
NCC Sundry Debtors,Operational Responses,4,202212,01/03/2022,P6,9100191,"-3,249.88 ","3,249.88 ",2204,Contract Cleaning,1007,Warsop,161.16 
NCC Sundry Debtors,Operational Responses,4,202212,01/03/2022,P6,9100191,"-3,249.88 ","3,249.88 ",2204,Contract Cleaning,1010,Harworth,322.41 
NCC Sundry Debtors,Operational Responses,4,202212,01/03/2022,P6,9100191,"-3,249.88 ","3,249.88 ",2204,Contract Cleaning,1011,Misterton,257.94 
NCC Sundry Debtors,Operational Responses,4,202212,01/03/2022,P6,9100191,"-3,249.88 ","3,249.88 ",2204,Contract Cleaning,1013,Tuxford,193.37 
NCC Sundry Debtors,Operational Responses,4,202212,01/03/2022,P6,9100191,"-3,249.88 ","3,249.88 ",2204,Contract Cleaning,1014,Southwell,290.20 
NCC Sundry Debtors,Operational Responses,4,202212,01/03/2022,P6,9100191,"-3,249.88 ","3,249.88 ",2204,Contract Cleaning,1015,Collingham,290.20 
NCC Sundry Debtors,Operational Responses,4,202212,01/03/2022,P6,9100191,"-3,249.88 ","3,249.88 ",2204,Contract Cleaning,1017,Bingham,193.56 
NCC Sundry Debtors,Operational Responses,4,202212,01/03/2022,P6,9100191,"-3,249.88 ","3,249.88 ",2204,Contract Cleaning,1023,Stapleford,483.61 
NCC Sundry Debtors,Operational Responses,4,202212,01/03/2022,P6,9100191,"-3,249.88 ","3,249.88 ",2204,Contract Cleaning,1024,Eastwood,322.36 
NCC Sundry Debtors,Operational Responses,4,202212,01/03/2022,P6,9100191,"-3,249.88 ","3,249.88 ",2204,Contract Cleaning,1028,East Leake,193.42 
NCC Sundry Debtors,Operational Responses,4,202212,01/03/2022,P6,9100193,-556.34 ,556.34 ,2204,Contract Cleaning,1001,Mansfield,15.01 
NCC Sundry Debtors,Operational Responses,4,202212,01/03/2022,P6,9100193,-556.34 ,556.34 ,2204,Contract Cleaning,1002,Blidworth,11.26 
NCC Sundry Debtors,Operational Responses,4,202212,01/03/2022,P6,9100193,-556.34 ,556.34 ,2204,Contract Cleaning,1003,London Road,14.07 
NCC Sundry Debtors,Operational Responses,4,202212,01/03/2022,P6,9100193,-556.34 ,556.34 ,2204,Contract Cleaning,1005,Ashfield,15.01 
NCC Sundry Debtors,Operational Responses,4,202212,01/03/2022,P6,9100193,-556.34 ,556.34 ,2204,Contract Cleaning,1006,Edwinstowe,11.26 
NCC Sundry Debtors,Operational Responses,4,202212,01/03/2022,P6,9100193,-556.34 ,556.34 ,2204,Contract Cleaning,1007,Warsop,11.26 
NCC Sundry Debtors,Operational Responses,4,202212,01/03/2022,P6,9100193,-556.34 ,556.34 ,2204,Contract Cleaning,1008,Worksop,15.01 
NCC Sundry Debtors,Operational Responses,4,202212,01/03/2022,P6,9100193,-556.34 ,556.34 ,2204,Contract Cleaning,1010,Harworth,11.26 
NCC Sundry Debtors,Operational Responses,4,202212,01/03/2022,P6,9100193,-556.34 ,556.34 ,2204,Contract Cleaning,1011,Misterton,11.26 
NCC Sundry Debtors,Operational Responses,4,202212,01/03/2022,P6,9100193,-556.34 ,556.34 ,2204,Contract Cleaning,1012,Retford,11.26 
NCC Sundry Debtors,Operational Responses,4,202212,01/03/2022,P6,9100193,-556.34 ,556.34 ,2204,Contract Cleaning,1013,Tuxford,11.26 
NCC Sundry Debtors,Operational Responses,4,202212,01/03/2022,P6,9100193,-556.34 ,556.34 ,2204,Contract Cleaning,1014,Southwell,11.26 
NCC Sundry Debtors,Operational Responses,4,202212,01/03/2022,P6,9100193,-556.34 ,556.34 ,2204,Contract Cleaning,1015,Collingham,11.26 
NCC Sundry Debtors,Operational Responses,4,202212,01/03/2022,P6,9100193,-556.34 ,556.34 ,2204,Contract Cleaning,1016,Newark,15.01 
NCC Sundry Debtors,Operational Responses,4,202212,01/03/2022,P6,9100193,-556.34 ,556.34 ,2204,Contract Cleaning,1017,Bingham,11.26 
NCC Sundry Debtors,Operational Responses,4,202212,01/03/2022,P6,9100193,-556.34 ,556.34 ,2204,Contract Cleaning,1019,West Bridgford,15.01 
NCC Sundry Debtors,Operational Responses,4,202212,01/03/2022,P6,9100193,-556.34 ,556.34 ,2204,Contract Cleaning,1020,Stockhill,15.01 
NCC Sundry Debtors,Operational Responses,4,202212,01/03/2022,P6,9100193,-556.34 ,556.34 ,2204,Contract Cleaning,1023,Stapleford,11.26 
NCC Sundry Debtors,Operational Responses,4,202212,01/03/2022,P6,9100193,-556.34 ,556.34 ,2204,Contract Cleaning,1024,Eastwood,11.26 
NCC Sundry Debtors,Operational Responses,4,202212,01/03/2022,P6,9100193,-556.34 ,556.34 ,2204,Contract Cleaning,1026,Arnold,15.01 
NCC Sundry Debtors,Operational Responses,4,202212,01/03/2022,P6,9100193,-556.34 ,556.34 ,2204,Contract Cleaning,1027,Carlton,15.01 
NCC Sundry Debtors,Operational Responses,4,202212,01/03/2022,P6,9100193,-556.34 ,556.34 ,2204,Contract Cleaning,1028,East Leake,11.26 
NCC Sundry Debtors,Operational Responses,4,202212,01/03/2022,P6,9100193,-556.34 ,556.34 ,2204,Contract Cleaning,1029,Highfields Station,15.01 
NCC Sundry Debtors,Management & Support Services,4,202212,01/03/2022,P6,9100193,-556.34 ,556.34 ,2204,Contract Cleaning,1030,Service Development Centre,33.77 
NCC Sundry Debtors,Management & Support Services,4,202212,01/03/2022,P6,9100193,-556.34 ,556.34 ,2204,Contract Cleaning,1035,Headquarters,134.31 
NCC Sundry Debtors,Operational Responses,4,202212,01/03/2022,P6,9100196,"-33,743.82 ","33,743.82 ",2204,Contract Cleaning,1001,Mansfield,"2,274.41 "
NCC Sundry Debtors,Operational Responses,4,202212,01/03/2022,P6,9100196,"-33,743.82 ","33,743.82 ",2204,Contract Cleaning,1003,London Road,"2,510.43 "
NCC Sundry Debtors,Operational Responses,4,202212,01/03/2022,P6,9100196,"-33,743.82 ","33,743.82 ",2204,Contract Cleaning,1005,Ashfield,"1,274.22 "
NCC Sundry Debtors,Operational Responses,4,202212,01/03/2022,P6,9100196,"-33,743.82 ","33,743.82 ",2204,Contract Cleaning,1006,Edwinstowe,983.82 
NCC Sundry Debtors,Operational Responses,4,202212,01/03/2022,P6,9100196,"-33,743.82 ","33,743.82 ",2204,Contract Cleaning,1008,Worksop,"1,435.47 "
NCC Sundry Debtors,Operational Responses,4,202212,01/03/2022,P6,9100196,"-33,743.82 ","33,743.82 ",2204,Contract Cleaning,1012,Retford,"1,628.96 "
NCC Sundry Debtors,Operational Responses,4,202212,01/03/2022,P6,9100196,"-33,743.82 ","33,743.82 ",2204,Contract Cleaning,1016,Newark,"1,274.22 "
NCC Sundry Debtors,Operational Responses,4,202212,01/03/2022,P6,9100196,"-33,743.82 ","33,743.82 ",2204,Contract Cleaning,1019,West Bridgford,"1,951.34 "
NCC Sundry Debtors,Operational Responses,4,202212,01/03/2022,P6,9100196,"-33,743.82 ","33,743.82 ",2204,Contract Cleaning,1020,Stockhill,"1,596.71 "
NCC Sundry Debtors,Operational Responses,4,202212,01/03/2022,P6,9100196,"-33,743.82 ","33,743.82 ",2204,Contract Cleaning,1026,Arnold,"1,193.60 "
NCC Sundry Debtors,Operational Responses,4,202212,01/03/2022,P6,9100196,"-33,743.82 ","33,743.82 ",2204,Contract Cleaning,1027,Carlton,"2,242.16 "
NCC Sundry Debtors,Operational Responses,4,202212,01/03/2022,P6,9100196,"-33,743.82 ","33,743.82 ",2204,Contract Cleaning,1029,Highfields Station,"4,203.44 "
NCC Sundry Debtors,Management & Support Services,4,202212,01/03/2022,P6,9100196,"-33,743.82 ","33,743.82 ",2204,Contract Cleaning,1030,Service Development Centre,"1,741.91 "
NCC Sundry Debtors,Management & Support Services,4,202212,01/03/2022,P6,9100196,"-33,743.82 ","33,743.82 ",2204,Contract Cleaning,2086,Procurement,"3,809.16 "
Falcon Environmental Limited,Management & Support Services,5,202212,30/01/2022,P6,9100199,-672.00 ,672.00 ,2204,Contract Cleaning,2086,Procurement,560.00 
NCC Sundry Debtors,Management & Support Services,4,202212,09/03/2022,P6,9100564,-990.23 ,990.23 ,2204,Contract Cleaning,2087,Estates Department (Previously Premises),825.19 
NCC Sundry Debtors,Prevention & Education,4,202212,04/03/2022,P6,9100566,"-1,758.00 ","1,758.00 ",2204,Contract Cleaning,1036,Clifton Community Safety Centre,"1,465.00 "
NCC Sundry Debtors,Management & Support Services,4,202212,09/03/2022,P6,9100567,"-2,157.12 ","2,157.12 ",2204,Contract Cleaning,2087,Estates Department (Previously Premises),"1,797.60 "
Falcon Environmental Limited,Management & Support Services,5,202212,30/03/2022,P6,9100595,-336.00 ,336.00 ,2204,Contract Cleaning,2086,Procurement,280.00 
Sws Environmental Services Ltd,Management & Support Services,1,202212,17/02/2022,P6,9100679,-948.00 ,948.00 ,2204,Contract Cleaning,2084,Engineering,790.00 
NCC Sundry Debtors,Operational Responses,4,202212,28/02/2022,P6,9100061,-457.03 ,457.03 ,2205,Window Cleaning,1001,Mansfield,18.76 
NCC Sundry Debtors,Operational Responses,4,202212,28/02/2022,P6,9100061,-457.03 ,457.03 ,2205,Window Cleaning,1002,Blidworth,11.26 
NCC Sundry Debtors,Operational Responses,4,202212,28/02/2022,P6,9100061,-457.03 ,457.03 ,2205,Window Cleaning,1003,London Road,22.51 
NCC Sundry Debtors,Operational Responses,4,202212,28/02/2022,P6,9100061,-457.03 ,457.03 ,2205,Window Cleaning,1005,Ashfield,11.26 
NCC Sundry Debtors,Operational Responses,4,202212,28/02/2022,P6,9100061,-457.03 ,457.03 ,2205,Window Cleaning,1006,Edwinstowe,16.88 
NCC Sundry Debtors,Operational Responses,4,202212,28/02/2022,P6,9100061,-457.03 ,457.03 ,2205,Window Cleaning,1007,Warsop,9.38 
NCC Sundry Debtors,Operational Responses,4,202212,28/02/2022,P6,9100061,-457.03 ,457.03 ,2205,Window Cleaning,1008,Worksop,11.26 
NCC Sundry Debtors,Operational Responses,4,202212,28/02/2022,P6,9100061,-457.03 ,457.03 ,2205,Window Cleaning,1010,Harworth,11.26 
NCC Sundry Debtors,Operational Responses,4,202212,28/02/2022,P6,9100061,-457.03 ,457.03 ,2205,Window Cleaning,1011,Misterton,11.26 
NCC Sundry Debtors,Operational Responses,4,202212,28/02/2022,P6,9100061,-457.03 ,457.03 ,2205,Window Cleaning,1012,Retford,15.01 
NCC Sundry Debtors,Operational Responses,4,202212,28/02/2022,P6,9100061,-457.03 ,457.03 ,2205,Window Cleaning,1013,Tuxford,9.38 
NCC Sundry Debtors,Operational Responses,4,202212,28/02/2022,P6,9100061,-457.03 ,457.03 ,2205,Window Cleaning,1014,Southwell,9.38 
NCC Sundry Debtors,Operational Responses,4,202212,28/02/2022,P6,9100061,-457.03 ,457.03 ,2205,Window Cleaning,1015,Collingham,11.26 
NCC Sundry Debtors,Operational Responses,4,202212,28/02/2022,P6,9100061,-457.03 ,457.03 ,2205,Window Cleaning,1016,Newark,11.26 
NCC Sundry Debtors,Operational Responses,4,202212,28/02/2022,P6,9100061,-457.03 ,457.03 ,2205,Window Cleaning,1017,Bingham,11.26 
NCC Sundry Debtors,Operational Responses,4,202212,28/02/2022,P6,9100061,-457.03 ,457.03 ,2205,Window Cleaning,1019,West Bridgford,13.13 
NCC Sundry Debtors,Operational Responses,4,202212,28/02/2022,P6,9100061,-457.03 ,457.03 ,2205,Window Cleaning,1020,Stockhill,16.88 
NCC Sundry Debtors,Operational Responses,4,202212,28/02/2022,P6,9100061,-457.03 ,457.03 ,2205,Window Cleaning,1023,Stapleford,11.26 
NCC Sundry Debtors,Operational Responses,4,202212,28/02/2022,P6,9100061,-457.03 ,457.03 ,2205,Window Cleaning,1024,Eastwood,11.26 
NCC Sundry Debtors,Operational Responses,4,202212,28/02/2022,P6,9100061,-457.03 ,457.03 ,2205,Window Cleaning,1026,Arnold,11.26 
NCC Sundry Debtors,Operational Responses,4,202212,28/02/2022,P6,9100061,-457.03 ,457.03 ,2205,Window Cleaning,1027,Carlton,15.01 
NCC Sundry Debtors,Operational Responses,4,202212,28/02/2022,P6,9100061,-457.03 ,457.03 ,2205,Window Cleaning,1028,East Leake,11.26 
NCC Sundry Debtors,Operational Responses,4,202212,28/02/2022,P6,9100061,-457.03 ,457.03 ,2205,Window Cleaning,1029,Highfields Station,37.52 
NCC Sundry Debtors,Management & Support Services,4,202212,28/02/2022,P6,9100061,-457.03 ,457.03 ,2205,Window Cleaning,1030,Service Development Centre,13.13 
NCC Sundry Debtors,Management & Support Services,4,202212,28/02/2022,P6,9100061,-457.03 ,457.03 ,2205,Window Cleaning,1035,Headquarters,48.76 
NCC Sundry Debtors,Operational Responses,4,202212,31/03/2022,P6,9100667,-457.03 ,457.03 ,2205,Window Cleaning,1001,Mansfield,18.76 
NCC Sundry Debtors,Operational Responses,4,202212,31/03/2022,P6,9100667,-457.03 ,457.03 ,2205,Window Cleaning,1002,Blidworth,11.26 
NCC Sundry Debtors,Operational Responses,4,202212,31/03/2022,P6,9100667,-457.03 ,457.03 ,2205,Window Cleaning,1003,London Road,22.51 
NCC Sundry Debtors,Operational Responses,4,202212,31/03/2022,P6,9100667,-457.03 ,457.03 ,2205,Window Cleaning,1005,Ashfield,11.26 
NCC Sundry Debtors,Operational Responses,4,202212,31/03/2022,P6,9100667,-457.03 ,457.03 ,2205,Window Cleaning,1006,Edwinstowe,16.88 
NCC Sundry Debtors,Operational Responses,4,202212,31/03/2022,P6,9100667,-457.03 ,457.03 ,2205,Window Cleaning,1007,Warsop,9.38 
NCC Sundry Debtors,Operational Responses,4,202212,31/03/2022,P6,9100667,-457.03 ,457.03 ,2205,Window Cleaning,1008,Worksop,11.28 
NCC Sundry Debtors,Operational Responses,4,202212,31/03/2022,P6,9100667,-457.03 ,457.03 ,2205,Window Cleaning,1010,Harworth,11.26 
NCC Sundry Debtors,Operational Responses,4,202212,31/03/2022,P6,9100667,-457.03 ,457.03 ,2205,Window Cleaning,1011,Misterton,11.26 
NCC Sundry Debtors,Operational Responses,4,202212,31/03/2022,P6,9100667,-457.03 ,457.03 ,2205,Window Cleaning,1012,Retford,15.01 
NCC Sundry Debtors,Operational Responses,4,202212,31/03/2022,P6,9100667,-457.03 ,457.03 ,2205,Window Cleaning,1013,Tuxford,9.38 
NCC Sundry Debtors,Operational Responses,4,202212,31/03/2022,P6,9100667,-457.03 ,457.03 ,2205,Window Cleaning,1014,Southwell,9.38 
NCC Sundry Debtors,Operational Responses,4,202212,31/03/2022,P6,9100667,-457.03 ,457.03 ,2205,Window Cleaning,1015,Collingham,11.26 
NCC Sundry Debtors,Operational Responses,4,202212,31/03/2022,P6,9100667,-457.03 ,457.03 ,2205,Window Cleaning,1016,Newark,11.26 
NCC Sundry Debtors,Operational Responses,4,202212,31/03/2022,P6,9100667,-457.03 ,457.03 ,2205,Window Cleaning,1017,Bingham,11.26 
NCC Sundry Debtors,Operational Responses,4,202212,31/03/2022,P6,9100667,-457.03 ,457.03 ,2205,Window Cleaning,1019,West Bridgford,13.13 
NCC Sundry Debtors,Operational Responses,4,202212,31/03/2022,P6,9100667,-457.03 ,457.03 ,2205,Window Cleaning,1020,Stockhill,16.88 
NCC Sundry Debtors,Operational Responses,4,202212,31/03/2022,P6,9100667,-457.03 ,457.03 ,2205,Window Cleaning,1023,Stapleford,11.26 
NCC Sundry Debtors,Operational Responses,4,202212,31/03/2022,P6,9100667,-457.03 ,457.03 ,2205,Window Cleaning,1024,Eastwood,11.26 
NCC Sundry Debtors,Operational Responses,4,202212,31/03/2022,P6,9100667,-457.03 ,457.03 ,2205,Window Cleaning,1026,Arnold,11.26 
NCC Sundry Debtors,Operational Responses,4,202212,31/03/2022,P6,9100667,-457.03 ,457.03 ,2205,Window Cleaning,1027,Carlton,15.01 
NCC Sundry Debtors,Operational Responses,4,202212,31/03/2022,P6,9100667,-457.03 ,457.03 ,2205,Window Cleaning,1028,East Leake,11.26 
NCC Sundry Debtors,Operational Responses,4,202212,31/03/2022,P6,9100667,-457.03 ,457.03 ,2205,Window Cleaning,1029,Highfields Station,37.52 
NCC Sundry Debtors,Management & Support Services,4,202212,31/03/2022,P6,9100667,-457.03 ,457.03 ,2205,Window Cleaning,1030,Service Development Centre,13.13 
NCC Sundry Debtors,Management & Support Services,4,202212,31/03/2022,P6,9100667,-457.03 ,457.03 ,2205,Window Cleaning,1035,Headquarters,48.76 
The Albert Hall Nottingham Limited,Management & Support Services,5,202212,30/11/2021,P6,9099963,"-2,692.65 ","2,692.65 ",2207,Hire of Premises,2093,Command Suite,"2,306.40 "
Mansfield Fire Station Museum,Operational Responses,1,202212,16/03/2022,P6,9100429,-388.27 ,388.27 ,2890,Insurance - Premises,2078,Mansfield Fire Station Museum,388.27 
Logistics UK,Management & Support Services,5,202212,21/02/2022,P6,9100157,-402.91 ,402.91 ,3100,Fleet Maintenance - Planned,2084,Engineering,335.76 
VIA East Midlands Ltd,Management & Support Services,5,202212,17/02/2022,P6,9100217,"-9,611.78 ","9,611.78 ",3100,Fleet Maintenance - Planned,2084,Engineering,"8,018.44 "
VIA East Midlands Ltd,Management & Support Services,5,202212,11/02/2022,P6,9100220,"-5,906.60 ","5,906.60 ",3100,Fleet Maintenance - Planned,2084,Engineering,"4,965.29 "
Civica Uk Limited,Management & Support Services,1,202212,21/01/2022,P6,9100225,"-3,537.60 ","3,537.60 ",3100,Fleet Maintenance - Planned,2084,Engineering,"2,948.00 "
Nottinghamshire Fire Safety Limited,Management & Support Services,1,202212,18/03/2022,P6,9100329,-273.42 ,273.42 ,3100,Fleet Maintenance - Planned,2084,Engineering,227.85 
VIA East Midlands Ltd,Management & Support Services,5,202212,01/03/2022,P6,9100616,"-3,110.13 ","3,110.13 ",3100,Fleet Maintenance - Planned,2084,Engineering,"2,596.09 "
VIA East Midlands Ltd,Management & Support Services,5,202212,12/03/2022,P6,9100617,"-7,810.67 ","7,810.67 ",3100,Fleet Maintenance - Planned,2084,Engineering,"6,526.14 "
Fleet ID Limited,Management & Support Services,5,202212,31/03/2022,P6,9100637,"-1,316.44 ","1,316.44 ",3100,Fleet Maintenance - Planned,2084,Engineering,"1,097.03 "
VIA East Midlands Ltd,Management & Support Services,5,202212,29/03/2022,P6,9100659,"-16,290.67 ","16,290.67 ",3100,Fleet Maintenance - Planned,2084,Engineering,"13,584.18 "
Woodway Engineering Limited,Management & Support Services,1,202212,22/02/2022,P6,9100068,"-4,106.76 ","4,106.76 ",3101,Fleet Modification,2084,Engineering,"3,422.30 "
Woodway Engineering Limited,Management & Support Services,1,202212,22/02/2022,P6,9100069,"-4,177.97 ","4,177.97 ",3101,Fleet Modification,2084,Engineering,"3,481.64 "
Woodway Engineering Limited,Management & Support Services,1,202212,23/02/2022,P6,9100072,"-4,255.97 ","4,255.97 ",3101,Fleet Modification,2084,Engineering,"3,546.64 "
Keltruck Limited,Management & Support Services,1,202212,28/02/2022,P6,9099973,-648.00 ,648.00 ,3102,Vehicle Maintenance Outsourced,2084,Engineering,540.00 
Godiva Limited,Management & Support Services,1,202212,11/02/2020,P6,9100013,"-3,191.60 ","3,191.60 ",3102,Vehicle Maintenance Outsourced,2084,Engineering,"2,659.66 "
Keltruck Limited,Management & Support Services,1,202212,06/01/2022,P6,9100473,-912.40 ,912.40 ,3102,Vehicle Maintenance Outsourced,2084,Engineering,760.33 
Angloco Limited,Management & Support Services,1,202212,31/12/2021,P6,9100476,-504.40 ,504.40 ,3102,Vehicle Maintenance Outsourced,2084,Engineering,420.33 
Angloco Limited,Management & Support Services,1,202212,27/11/2021,P6,9100477,"-9,526.16 ","9,526.16 ",3102,Vehicle Maintenance Outsourced,2084,Engineering,"7,938.47 "
Angloco Limited,Management & Support Services,1,202212,27/11/2021,P6,9100478,"-6,620.69 ","6,620.69 ",3102,Vehicle Maintenance Outsourced,2084,Engineering,"5,517.24 "
Angloco Limited,Management & Support Services,1,202212,25/03/2022,P6,9100512,-694.92 ,694.92 ,3102,Vehicle Maintenance Outsourced,2084,Engineering,579.10 
Mitchell Diesel Limited,Management & Support Services,5,202212,30/03/2022,P6,9100596,-420.00 ,420.00 ,3102,Vehicle Maintenance Outsourced,2084,Engineering,350.00 
Keltruck Limited,Management & Support Services,1,202212,10/03/2022,P6,9100402,648.00 ,-648.00 ,3102,Vehicle Maintenance Outsourced,2084,Engineering,-540.00 
VIA East Midlands Ltd,Management & Support Services,5,202212,17/02/2022,P6,9100047,"-14,939.35 ","14,939.35 ",3103,Fleet Maintenance - Unplanned,2084,Engineering,"12,449.46 "
Supply + Limited,Management & Support Services,1,202212,04/03/2022,P6,9100078,-945.31 ,945.31 ,3103,Fleet Maintenance - Unplanned,2084,Engineering,777.96 
VIA East Midlands Ltd,Management & Support Services,5,202212,11/02/2022,P6,9100404,"-25,427.26 ","25,427.26 ",3103,Fleet Maintenance - Unplanned,2084,Engineering,"21,189.38 "
VIA East Midlands Ltd,Management & Support Services,5,202212,01/03/2022,P6,9100493,-372.60 ,372.60 ,3103,Fleet Maintenance - Unplanned,2084,Engineering,310.50 
VIA East Midlands Ltd,Management & Support Services,5,202212,01/03/2022,P6,9100609,"-45,238.16 ","45,238.16 ",3103,Fleet Maintenance - Unplanned,2084,Engineering,"37,698.47 "
VIA East Midlands Ltd,Management & Support Services,5,202212,12/03/2022,P6,9100618,"-14,119.81 ","14,119.81 ",3103,Fleet Maintenance - Unplanned,2084,Engineering,"11,766.51 "
VIA East Midlands Ltd,Management & Support Services,5,202212,29/03/2022,P6,9100660,-497.58 ,497.58 ,3103,Fleet Maintenance - Unplanned,2084,Engineering,414.65 
VIA East Midlands Ltd,Management & Support Services,5,202212,29/03/2022,P6,9100661,"-48,414.96 ","48,414.96 ",3103,Fleet Maintenance - Unplanned,2084,Engineering,"40,345.80 "
VIA East Midlands Ltd,Management & Support Services,5,202212,17/02/2022,P6,9100218,"-2,206.57 ","2,206.57 ",3104,Fleet - Accident Repairs,2084,Engineering,"1,838.81 "
VIA East Midlands Ltd,Management & Support Services,5,202212,11/02/2022,P6,9100219,-558.90 ,558.90 ,3104,Fleet - Accident Repairs,2084,Engineering,465.75 
VIA East Midlands Ltd,Management & Support Services,5,202212,01/03/2022,P6,9100492,-894.77 ,894.77 ,3104,Fleet - Accident Repairs,2084,Engineering,745.64 
Keltruck Limited,Management & Support Services,1,202212,10/03/2022,P6,9100497,-648.00 ,648.00 ,3104,Fleet - Accident Repairs,2084,Engineering,540.00 
CERTAS,Operational Responses,5,202212,23/02/2022,P6,9100070,"-11,583.78 ","11,583.78 ",3200,Fuel - Vehicle,1012,Retford,"9,653.15 "
CERTAS,Operational Responses,5,202212,23/02/2022,P6,9100071,"-1,440.24 ","1,440.24 ",3200,Fuel - Vehicle,1008,Worksop,"1,200.20 "
CERTAS,Operational Responses,5,202212,04/03/2022,P6,9100122,"-11,095.09 ","11,095.09 ",3200,Fuel - Vehicle,1020,Stockhill,"9,245.91 "
CERTAS,Operational Responses,5,202212,04/03/2022,P6,9100123,"-4,408.94 ","4,408.94 ",3200,Fuel - Vehicle,1029,Highfields Station,"3,674.12 "
CERTAS,Operational Responses,5,202212,04/03/2022,P6,9100124,"-8,091.10 ","8,091.10 ",3200,Fuel - Vehicle,1003,London Road,"6,742.58 "
CERTAS,Operational Responses,5,202212,22/02/2022,P6,9100125,"-11,510.40 ","11,510.40 ",3200,Fuel - Vehicle,1005,Ashfield,"9,592.00 "
CERTAS,Operational Responses,5,202212,07/03/2022,P6,9100156,"-8,505.00 ","8,505.00 ",3200,Fuel - Vehicle,1006,Edwinstowe,"7,087.50 "
CERTAS,Operational Responses,5,202212,17/03/2022,P6,9100526,"-2,254.39 ","2,254.39 ",3200,Fuel - Vehicle,1008,Worksop,"1,878.66 "
CERTAS,Operational Responses,5,202212,23/03/2022,P6,9100528,"-1,673.10 ","1,673.10 ",3200,Fuel - Vehicle,1008,Worksop,"1,394.25 "
The Lodge Tyre Co. Limited,Management & Support Services,5,202212,28/02/2022,P6,9100121,"-1,896.26 ","1,896.26 ",3202,Tyres,2084,Engineering,"1,580.22 "
The Lodge Tyre Co. Limited,Management & Support Services,5,202212,31/03/2022,P6,9100657,"-2,628.08 ","2,628.08 ",3202,Tyres,2084,Engineering,"2,190.08 "
Drivercheck Ltd,Management & Support Services,1,202212,28/02/2022,P6,9100120,-969.84 ,969.84 ,3203,Motor Tax / Licenses,2084,Engineering,808.20 
Drivercheck Ltd,Management & Support Services,1,202212,30/03/2022,P6,9100658,-466.50 ,466.50 ,3203,Motor Tax / Licenses,2084,Engineering,388.75 
Enterprise Rent-A-Car,Management & Support Services,1,202212,01/02/2022,P6,9100057,-265.61 ,265.61 ,3400,Hire of Fleet Vehicles,2084,Engineering,221.34 
LeasePlan UK Limited,Management & Support Services,5,202212,12/01/2022,P6,9100099,"-1,107.78 ","1,107.78 ",3400,Hire of Fleet Vehicles,2084,Engineering,923.16 
Enterprise Rent-A-Car,Management & Support Services,1,202212,09/02/2022,P6,9100212,-342.05 ,342.05 ,3400,Hire of Fleet Vehicles,2084,Engineering,285.04 
Enterprise Rent-A-Car,Management & Support Services,1,202212,09/02/2022,P6,9100213,-342.05 ,342.05 ,3400,Hire of Fleet Vehicles,2084,Engineering,285.04 
Enterprise Rent-A-Car,Management & Support Services,1,202212,09/02/2022,P6,9100214,-342.05 ,342.05 ,3400,Hire of Fleet Vehicles,2084,Engineering,285.04 
Enterprise Rent-A-Car,Management & Support Services,1,202212,09/02/2022,P6,9100215,-342.05 ,342.05 ,3400,Hire of Fleet Vehicles,2084,Engineering,285.04 
Enterprise Rent-A-Car,Management & Support Services,1,202212,09/02/2022,P6,9100216,-342.05 ,342.05 ,3400,Hire of Fleet Vehicles,2084,Engineering,285.04 
Civil Defence Supply Ltd,Management & Support Services,1,202212,01/03/2022,P6,9100065,-784.20 ,784.20 ,4000,Operational Equipment Purchase,2084,Engineering,653.50 
Life Safety Distribution AG,Management & Support Services,1,202212,04/03/2022,P6,9100096,-501.12 ,501.12 ,4000,Operational Equipment Purchase,2084,Engineering,12.60 
Life Safety Distribution AG,Management & Support Services,1,202212,04/03/2022,P6,9100096,-501.12 ,501.12 ,4000,Operational Equipment Purchase,2084,Engineering,405.00 
CMT Flexibles Limited,Management & Support Services,5,202212,16/03/2022,P6,9100271,-314.35 ,314.35 ,4000,Operational Equipment Purchase,2084,Engineering,15.50 
CMT Flexibles Limited,Management & Support Services,5,202212,16/03/2022,P6,9100271,-314.35 ,314.35 ,4000,Operational Equipment Purchase,2084,Engineering,246.46 
Life Safety Distribution AG,Management & Support Services,1,202212,02/03/2022,P6,9100281,-653.40 ,653.40 ,4000,Operational Equipment Purchase,2084,Engineering,532.50 
Life Safety Distribution AG,Management & Support Services,1,202212,22/03/2022,P6,9100398,"-1,423.88 ","1,423.88 ",4000,Operational Equipment Purchase,2084,Engineering,19.00 
Life Safety Distribution AG,Management & Support Services,1,202212,22/03/2022,P6,9100398,"-1,423.88 ","1,423.88 ",4000,Operational Equipment Purchase,2084,Engineering,"1,167.57 "
Life Safety Distribution AG,Management & Support Services,1,202212,22/03/2022,P6,9100400,"-1,494.31 ","1,494.31 ",4000,Operational Equipment Purchase,2084,Engineering,"1,225.32 "
Avon Protection Systems,Management & Support Services,5,202212,23/03/2022,P6,9100568,"-3,288.00 ","3,288.00 ",4000,Operational Equipment Purchase,2084,Engineering,20.00 
Avon Protection Systems,Management & Support Services,5,202212,23/03/2022,P6,9100568,"-3,288.00 ","3,288.00 ",4000,Operational Equipment Purchase,2084,Engineering,"2,720.00 "
Radiocoms Systems Ltd,Management & Support Services,1,202212,29/03/2022,P6,9100614,-293.76 ,293.76 ,4000,Operational Equipment Purchase,2084,Engineering,244.80 
Angus Fire,Management & Support Services,1,202212,28/03/2022,P6,9100622,"-1,953.36 ","1,953.36 ",4000,Operational Equipment Purchase,2084,Engineering,79.00 
William G search,Management & Support Services,1,202212,28/02/2022,P6,9100639,-360.00 ,360.00 ,4000,Operational Equipment Purchase,2084,Engineering,300.00 
Survitec Service & Distribution Ltd,Management & Support Services,1,202212,31/03/2022,P6,9100641,"-6,600.00 ","6,600.00 ",4000,Operational Equipment Purchase,2084,Engineering,"5,500.00 "
Lyon Equipment Limited,Management & Support Services,1,202212,10/03/2022,P6,9100681,"-1,421.96 ","1,421.96 ",4000,Operational Equipment Purchase,2084,Engineering,"1,184.96 "
NightSearcher LTD,Management & Support Services,5,202212,28/03/2022,P6,9100686,"-2,120.25 ","2,120.25 ",4000,Operational Equipment Purchase,2084,Engineering,"1,766.88 "
Lyon Equipment Limited,Management & Support Services,1,202212,09/02/2022,P6,9100694,-618.15 ,618.15 ,4000,Operational Equipment Purchase,2084,Engineering,515.12 
Ruth Lee Limited,Management & Support Services,1,202212,17/03/2022,P6,9100276,-533.40 ,533.40 ,4001,Operational Equipment (Medical),2084,Engineering,39.50 
Ruth Lee Limited,Management & Support Services,1,202212,17/03/2022,P6,9100276,-533.40 ,533.40 ,4001,Operational Equipment (Medical),2084,Engineering,405.00 
Wel Medical Ltd,Management & Support Services,5,202212,22/03/2022,P6,9100384,"-1,919.94 ","1,919.94 ",4001,Operational Equipment (Medical),2084,Engineering,"1,590.00 "
Flogas Britian Limited,Management & Support Services,1,202212,15/02/2022,P6,9100058,"-1,173.22 ","1,173.22 ",4006,Oxygen and Other Gases,2084,Engineering,977.68 
Flogas Britian Limited,Management & Support Services,1,202212,15/03/2022,P6,9100305,"-1,173.22 ","1,173.22 ",4006,Oxygen and Other Gases,2084,Engineering,977.68 
R S Components Limited,Management & Support Services,1,202212,14/03/2022,P6,9100480,-323.88 ,323.88 ,4007,Equipment Annual Service,2084,Engineering,269.90 
Clan Tools & Plant Ltd,Management & Support Services,1,202212,10/02/2022,P6,9100486,-756.00 ,756.00 ,4007,Equipment Annual Service,2084,Engineering,630.00 
Lyon Equipment Limited,Management & Support Services,1,202212,18/03/2022,P6,9100682,"-9,443.41 ","9,443.41 ",4007,Equipment Annual Service,2084,Engineering,"7,869.51 "
Clan Tools & Plant Ltd,Management & Support Services,1,202212,10/02/2022,P6,9100692,-756.00 ,756.00 ,4007,Equipment Annual Service,2084,Engineering,630.00 
Terberg DTS UK Limited,Management & Support Services,5,202212,15/03/2022,P6,9100209,-264.98 ,264.98 ,4008,Equipment Reative Maintenance,2084,Engineering,220.82 
Terberg DTS UK Limited,Management & Support Services,5,202212,15/03/2022,P6,9100210,-275.70 ,275.70 ,4008,Equipment Reative Maintenance,2084,Engineering,229.75 
Terberg DTS UK Limited,Management & Support Services,5,202212,15/03/2022,P6,9100211,-331.16 ,331.16 ,4008,Equipment Reative Maintenance,2084,Engineering,275.97 
Weber Rescue Uk Ltd,Management & Support Services,1,202212,18/03/2022,P6,9100369,-622.20 ,622.20 ,4008,Equipment Reative Maintenance,2084,Engineering,23.50 
Weber Rescue Uk Ltd,Management & Support Services,1,202212,18/03/2022,P6,9100369,-622.20 ,622.20 ,4008,Equipment Reative Maintenance,2084,Engineering,495.00 
ITGL Limited,Management & Support Services,5,202212,23/03/2022,P6,9100621,"-3,930.18 ","3,930.18 ",4100,Computer Hardware/ Software,2097,ICT Service Operations,"3,275.15 "
Risual Limited,Management & Support Services,5,202212,24/02/2022,P6,9100016,"-4,146.90 ","4,146.90 ",4101,Computer Software Maintenance Contracts,2095,ICT Digital Transformation,"3,455.75 "
GTT (Interoute/Easynet),Management & Support Services,5,202212,25/02/2022,P6,9100064,"-15,508.99 ","15,508.99 ",4101,Computer Software Maintenance Contracts,2095,ICT Digital Transformation,"12,924.16 "
Civica Uk Limited,Management & Support Services,1,202212,14/02/2022,P6,9100081,"-11,528.12 ","11,528.12 ",4101,Computer Software Maintenance Contracts,2095,ICT Digital Transformation,"9,606.77 "
Midland HR,Management & Support Services,5,202212,30/12/2021,P6,9100102,"-10,659.00 ","10,659.00 ",4101,Computer Software Maintenance Contracts,2095,ICT Digital Transformation,"8,882.50 "
Midland HR,Management & Support Services,5,202212,30/12/2021,P6,9100103,"-1,597.20 ","1,597.20 ",4101,Computer Software Maintenance Contracts,2095,ICT Digital Transformation,"1,331.00 "
Risual Limited,Management & Support Services,5,202212,15/03/2022,P6,9100272,"-12,038.89 ","12,038.89 ",4101,Computer Software Maintenance Contracts,2095,ICT Digital Transformation,"10,032.41 "
Civica Uk Limited,Management & Support Services,1,202212,14/02/2022,P6,9100284,"-33,663.66 ","33,663.66 ",4101,Computer Software Maintenance Contracts,2095,ICT Digital Transformation,"28,053.05 "
Experian Ltd,Management & Support Services,1,202212,17/03/2022,P6,9100304,"-21,582.28 ","21,582.28 ",4101,Computer Software Maintenance Contracts,2095,ICT Digital Transformation,"17,985.23 "
Cadcorp,Management & Support Services,1,202212,23/03/2022,P6,9100468,"-20,689.00 ","20,689.00 ",4101,Computer Software Maintenance Contracts,2095,ICT Digital Transformation,"8,515.83 "
Cadcorp,Management & Support Services,1,202212,23/03/2022,P6,9100468,"-20,689.00 ","20,689.00 ",4101,Computer Software Maintenance Contracts,2095,ICT Digital Transformation,"8,725.00 "
GTT (Interoute/Easynet),Management & Support Services,5,202212,25/03/2022,P6,9100562,"-15,508.99 ","15,508.99 ",4101,Computer Software Maintenance Contracts,2095,ICT Digital Transformation,"12,924.16 "
Bytes Software Services Ltd,Management & Support Services,5,202212,25/03/2022,P6,9100581,"-264,313.78 ","264,313.78 ",4101,Computer Software Maintenance Contracts,2095,ICT Digital Transformation,"220,261.48 "
Derbyshire Fire Authority,Operational Responses,4,202212,23/03/2022,P6,9100598,"-36,353.08 ","36,353.08 ",4101,Computer Software Maintenance Contracts,2005,Fire Control,"3,695.80 "
Bytes Software Services Ltd,Management & Support Services,5,202212,30/03/2022,P6,9100602,-552.00 ,552.00 ,4101,Computer Software Maintenance Contracts,2097,ICT Service Operations,460.00 
3TC Software Ltd,Management & Support Services,1,202212,31/03/2022,P6,9100643,"-21,754.09 ","21,754.09 ",4101,Computer Software Maintenance Contracts,2095,ICT Digital Transformation,"18,128.41 "
3TC Software Ltd,Management & Support Services,1,202212,31/03/2022,P6,9100653,"-21,197.26 ","21,197.26 ",4101,Computer Software Maintenance Contracts,2095,ICT Digital Transformation,"17,664.38 "
CDW UK,Management & Support Services,5,202212,17/03/2022,P6,9100299,-330.62 ,330.62 ,4102,Computer Consumables,2097,ICT Service Operations,275.52 
Home Office,Management & Support Services,4,202212,24/02/2022,P6,9100179,"-55,471.42 ","55,471.42 ",4204,FireLink Contract Charges,2095,ICT Digital Transformation,"46,226.18 "
Home Office,Management & Support Services,4,202212,14/03/2022,P6,9100371,"-55,546.80 ","55,546.80 ",4204,FireLink Contract Charges,2095,ICT Digital Transformation,"46,289.00 "
Home Office,Management & Support Services,4,202212,16/03/2022,P6,9100695,"-9,257.13 ","9,257.13 ",4204,FireLink Contract Charges,2095,ICT Digital Transformation,"-46,285.65 "
Home Office,Management & Support Services,4,202212,16/03/2022,P6,9100695,"-9,257.13 ","9,257.13 ",4204,FireLink Contract Charges,2095,ICT Digital Transformation,"46,285.65 "
BT PLC,Management & Support Services,1,202212,09/02/2022,P6,9100223,"-2,188.70 ","2,188.70 ",4301,Phones - Landline,2097,ICT Service Operations,40.00 
BT PLC,Management & Support Services,1,202212,09/02/2022,P6,9100223,"-2,188.70 ","2,188.70 ",4301,Phones - Landline,2097,ICT Service Operations,"1,790.58 "
BT PLC,Management & Support Services,1,202212,07/03/2022,P6,9100330,"-1,169.92 ","1,169.92 ",4301,Phones - Landline,2097,ICT Service Operations,974.93 
Risual Limited,Management & Support Services,5,202212,21/03/2022,P6,9100403,"-1,901.66 ","1,901.66 ",4301,Phones - Landline,2097,ICT Service Operations,"1,584.72 "
Daisy Corporate Services Trading Limited,Management & Support Services,1,202212,01/03/2022,P6,9100538,"-1,264.66 ","1,264.66 ",4301,Phones - Landline,2096,ICT Service Transformation,"1,053.88 "
EE,Management & Support Services,1,202212,01/03/2022,P6,9100222,"-4,142.26 ","4,142.26 ",4302,Phones - Mobiles,2097,ICT Service Operations,"3,451.88 "
Smalley's Gentleman's Outfitters,Management & Support Services,10,202212,18/03/2022,P6,9100323,"-4,500.00 ","4,500.00 ",4400,Clothing and Uniform,2086,Procurement,"4,500.00 "
Bristol Uniforms Limited,Operational Responses,1,202212,08/03/2022,P6,9100143,-329.09 ,329.09 ,4401,Protective Clothing,1024,Eastwood,274.24 
Lyon Equipment Limited,Prevention and Education ,1,202212,25/03/2022,P6,9100560,"-2,541.60 ","2,541.60 ",4401,Protective Clothing,2026,Fire Investigation,"2,118.00 "
Kite Packaging Limited,Management & Support Services,5,202212,24/03/2022,P6,9100569,-271.99 ,271.99 ,4401,Protective Clothing,2086,Procurement,226.66 
Safeglove,Management & Support Services,1,202212,02/03/2022,P6,9100048,-342.19 ,342.19 ,4402,Uniform and Protectice Clothing Repairs,2086,Procurement,285.16 
Bristol Uniforms Limited,Management & Support Services,1,202212,25/02/2022,P6,9100370,"-18,253.03 ","18,253.03 ",4402,Uniform and Protectice Clothing Repairs,2086,Procurement,"3,293.00 "
Bristol Uniforms Limited,Management & Support Services,1,202212,28/01/2022,P6,9100514,"-13,686.70 ","13,686.70 ",4402,Uniform and Protectice Clothing Repairs,2086,Procurement,"2,460.36 "
Dry Cleaners Limited T/A National Dry Cleaners,Management & Support Services,5,202212,11/03/2022,P6,9100273,-814.39 ,814.39 ,4403,Laundry and Dry Cleaning,2086,Procurement,678.67 
Bristol Uniforms Limited,Management & Support Services,1,202212,25/02/2022,P6,9100370,"-18,253.03 ","18,253.03 ",4403,Laundry and Dry Cleaning,2086,Procurement,"11,917.86 "
Bristol Uniforms Limited,Management & Support Services,1,202212,28/01/2022,P6,9100514,"-13,686.70 ","13,686.70 ",4403,Laundry and Dry Cleaning,2086,Procurement,"8,945.22 "
Plastor Ltd,Management & Support Services,1,202212,10/03/2022,P6,9100162,-728.70 ,728.70 ,4500,Furniture,2086,Procurement,607.25 
Redbrick Print Solutions LLP,"Statutory Inspection, Certification & Enforcement",5,202212,28/02/2022,P6,9100142,-717.00 ,717.00 ,4504,General Equipment,2021,Fire Protection,597.50 
Planet IT Limited,Management & Support Services,5,202212,31/03/2022,P6,9100633,"-4,207.56 ","4,207.56 ",4504,General Equipment,2051,Corporate Communications,"3,506.30 "
Fitness Warehouse Limited t/a Gym Gear,Management & Support Services,5,202212,22/03/2022,P6,9100513,"-1,194.00 ","1,194.00 ",4510,Fitness Equipment,2061,Occupational Health & Fitness,995.00 
Selecta UK,Operational Responses,1,202212,25/03/2022,P6,9100529,-348.00 ,348.00 ,4524,Drinking Water,1003,London Road,290.00 
Supply + Limited,Management & Support Services,1,202212,04/03/2022,P6,9100078,-945.31 ,945.31 ,4534,Carriage and Packaging,2086,Procurement,9.80 
H-Squared,Management & Support Services,1,202212,04/03/2022,P6,9100084,-416.40 ,416.40 ,4534,Carriage and Packaging,2086,Procurement,11.00 
Premier Hose Technologies Ltd,Management & Support Services,1,202212,31/01/2022,P6,9100085,-277.97 ,277.97 ,4534,Carriage and Packaging,2086,Procurement,15.00 
J Hudson & Co (Whistles) Ltd,Management & Support Services,1,202212,14/01/2021,P6,9100134,-557.95 ,557.95 ,4534,Carriage and Packaging,2086,Procurement,11.46 
J Hudson & Co (Whistles) Ltd,Management & Support Services,1,202212,09/03/2021,P6,9100137,-575.38 ,575.38 ,4534,Carriage and Packaging,2086,Procurement,11.48 
J Hudson & Co (Whistles) Ltd,Management & Support Services,1,202212,13/08/2021,P6,9100141,-294.58 ,294.58 ,4534,Carriage and Packaging,2086,Procurement,11.48 
Specialised Canvas Group,Management & Support Services,1,202212,15/03/2022,P6,9100203,-670.20 ,670.20 ,4534,Carriage and Packaging,2086,Procurement,18.86 
H Fine & Son Limited,Management & Support Services,1,202212,09/03/2022,P6,9100206,-285.60 ,285.60 ,4534,Carriage and Packaging,9999,Default,16.00 
Life Safety Distribution AG,Management & Support Services,1,202212,02/03/2022,P6,9100281,-653.40 ,653.40 ,4534,Carriage and Packaging,2084,Engineering,12.00 
Thomas Kneale & Co Ltd,Management & Support Services,1,202212,16/03/2022,P6,9100372,-900.60 ,900.60 ,4534,Carriage and Packaging,9999,Default,21.50 
Wel Medical Ltd,Management & Support Services,5,202212,22/03/2022,P6,9100384,"-1,919.94 ","1,919.94 ",4534,Carriage and Packaging,9999,Default,9.95 
Trent Castings,Management & Support Services,1,202212,14/03/2022,P6,9100397,-710.00 ,710.00 ,4534,Carriage and Packaging,2086,Procurement,9.67 
Life Safety Distribution AG,Management & Support Services,1,202212,22/03/2022,P6,9100400,"-1,494.31 ","1,494.31 ",4534,Carriage and Packaging,9999,Default,19.94 
Trent Castings,Management & Support Services,1,202212,08/03/2022,P6,9100401,-710.00 ,710.00 ,4534,Carriage and Packaging,2086,Procurement,9.67 
Collins Nets Ltd,Management & Support Services,1,202212,07/03/2022,P6,9100408,-316.80 ,316.80 ,4534,Carriage and Packaging,2086,Procurement,9.00 
BlockaboxLimited,Management & Support Services,5,202212,21/03/2022,P6,9100483,-535.00 ,535.00 ,4534,Carriage and Packaging,2086,Procurement,10.00 
Terberg DTS UK Limited,Management & Support Services,5,202212,15/03/2022,P6,9100522,-525.55 ,525.55 ,4534,Carriage and Packaging,9999,Default,17.50 
Specialised Canvas Group,Management & Support Services,1,202212,29/03/2022,P6,9100604,-479.42 ,479.42 ,4534,Carriage and Packaging,2086,Procurement,23.03 
Arco East Midlands,Management & Support Services,1,202212,22/02/2022,P6,9099967,"-1,149.24 ","1,149.24 ",4541,Hydrant Maintenance,2084,Engineering,957.70 
Severn Trent Water Ltd,Management & Support Services,1,202212,11/03/2022,P6,9100332,"-1,430.03 ","1,430.03 ",4541,Hydrant Maintenance,2084,Engineering,"1,191.69 "
Severn Trent Water Ltd,Management & Support Services,1,202212,11/03/2022,P6,9100333,-397.10 ,397.10 ,4541,Hydrant Maintenance,2084,Engineering,330.92 
Severn Trent Water Ltd,Management & Support Services,1,202212,11/03/2022,P6,9100334,"-1,980.23 ","1,980.23 ",4541,Hydrant Maintenance,2084,Engineering,"1,650.19 "
Severn Trent Water Ltd,Management & Support Services,1,202212,11/03/2022,P6,9100335,"-1,430.03 ","1,430.03 ",4541,Hydrant Maintenance,2084,Engineering,"1,191.69 "
Severn Trent Water Ltd,Management & Support Services,1,202212,11/03/2022,P6,9100336,-597.58 ,597.58 ,4541,Hydrant Maintenance,2084,Engineering,497.98 
Severn Trent Water Ltd,Management & Support Services,1,202212,14/03/2022,P6,9100337,-397.10 ,397.10 ,4541,Hydrant Maintenance,2084,Engineering,330.92 
Severn Trent Water Ltd,Management & Support Services,1,202212,14/03/2022,P6,9100339,-397.10 ,397.10 ,4541,Hydrant Maintenance,2084,Engineering,330.92 
Severn Trent Water Ltd,Management & Support Services,1,202212,14/03/2022,P6,9100340,"-1,430.03 ","1,430.03 ",4541,Hydrant Maintenance,2084,Engineering,"1,191.69 "
Severn Trent Water Ltd,Management & Support Services,1,202212,14/03/2022,P6,9100341,"-1,430.03 ","1,430.03 ",4541,Hydrant Maintenance,2084,Engineering,"1,191.69 "
Severn Trent Water Ltd,Management & Support Services,1,202212,14/03/2022,P6,9100342,"-1,801.70 ","1,801.70 ",4541,Hydrant Maintenance,2084,Engineering,"1,501.42 "
Severn Trent Water Ltd,Management & Support Services,1,202212,14/03/2022,P6,9100343,"-1,590.55 ","1,590.55 ",4541,Hydrant Maintenance,2084,Engineering,"1,325.46 "
Severn Trent Water Ltd,Management & Support Services,1,202212,14/03/2022,P6,9100345,-426.58 ,426.58 ,4541,Hydrant Maintenance,2084,Engineering,355.48 
Severn Trent Water Ltd,Management & Support Services,1,202212,14/03/2022,P6,9100346,"-1,801.70 ","1,801.70 ",4541,Hydrant Maintenance,2084,Engineering,"1,501.42 "
Severn Trent Water Ltd,Management & Support Services,1,202212,14/03/2022,P6,9100347,-790.28 ,790.28 ,4541,Hydrant Maintenance,2084,Engineering,658.57 
Severn Trent Water Ltd,Management & Support Services,1,202212,14/03/2022,P6,9100348,"-1,801.70 ","1,801.70 ",4541,Hydrant Maintenance,2084,Engineering,"1,501.42 "
Severn Trent Water Ltd,Management & Support Services,1,202212,14/03/2022,P6,9100350,-790.28 ,790.28 ,4541,Hydrant Maintenance,2084,Engineering,658.57 
Severn Trent Water Ltd,Management & Support Services,1,202212,14/03/2022,P6,9100351,"-1,801.70 ","1,801.70 ",4541,Hydrant Maintenance,2084,Engineering,"1,501.42 "
Severn Trent Water Ltd,Management & Support Services,1,202212,14/03/2022,P6,9100355,"-1,801.70 ","1,801.70 ",4541,Hydrant Maintenance,2084,Engineering,"1,501.42 "
Severn Trent Water Ltd,Management & Support Services,1,202212,14/03/2022,P6,9100356,-426.58 ,426.58 ,4541,Hydrant Maintenance,2084,Engineering,355.48 
Severn Trent Water Ltd,Management & Support Services,1,202212,14/03/2022,P6,9100357,-426.58 ,426.58 ,4541,Hydrant Maintenance,2084,Engineering,355.48 
Severn Trent Water Ltd,Management & Support Services,1,202212,14/03/2022,P6,9100361,-790.28 ,790.28 ,4541,Hydrant Maintenance,2084,Engineering,658.57 
Severn Trent Water Ltd,Management & Support Services,1,202212,25/03/2022,P6,9100491,-597.58 ,597.58 ,4541,Hydrant Maintenance,2084,Engineering,497.98 
Brissco Equipment Limited,Management & Support Services,1,202212,29/03/2022,P6,9100592,"-7,640.34 ","7,640.34 ",4541,Hydrant Maintenance,2084,Engineering,21.00 
Brissco Equipment Limited,Management & Support Services,1,202212,29/03/2022,P6,9100592,"-7,640.34 ","7,640.34 ",4541,Hydrant Maintenance,2084,Engineering,"6,345.95 "
Redacted Personal Data,Management & Support Services,2,202212,26/01/2022,P6,9100055,-262.60 ,262.60 ,4552,Occupational Health Costs,2061,Occupational Health & Fitness,262.60 
Amplivox Ltd,Management & Support Services,1,202212,04/03/2022,P6,9100106,-719.03 ,719.03 ,4552,Occupational Health Costs,2061,Occupational Health & Fitness,599.19 
Nottinghamshire Relate,Management & Support Services,1,202212,31/03/2022,P6,9100696,-450.00 ,450.00 ,4552,Occupational Health Costs,2061,Occupational Health & Fitness,450.00 
NTG Consultants Limited,Management & Support Services,5,202212,09/02/2022,P6,9099972,-660.00 ,660.00 ,4554,Consultancy Fees - Non Estates Related,2049,Professional Support,550.00 
NTG Consultants Limited,Management & Support Services,5,202212,28/01/2022,P6,9099984,-330.00 ,330.00 ,4554,Consultancy Fees - Non Estates Related,2049,Professional Support,275.00 
Midland HR,Management & Support Services,5,202212,29/12/2021,P6,9100056,"-1,296.00 ","1,296.00 ",4554,Consultancy Fees - Non Estates Related,2081,Finance,"1,080.00 "
NTG Consultants Limited,Management & Support Services,5,202212,04/03/2022,P6,9100066,-660.00 ,660.00 ,4554,Consultancy Fees - Non Estates Related,2049,Professional Support,550.00 
Richardson Associates (UK) Limited,Management & Support Services,5,202212,07/03/2022,P6,9100080,"-2,160.00 ","2,160.00 ",4554,Consultancy Fees - Non Estates Related,2054,Equalities Team,"1,800.00 "
NTG Consultants Limited,Management & Support Services,5,202212,15/04/2022,P6,9100366,-660.00 ,660.00 ,4554,Consultancy Fees - Non Estates Related,2049,Professional Support,550.00 
NTG Consultants Limited,Management & Support Services,5,202212,24/03/2022,P6,9100500,-660.00 ,660.00 ,4554,Consultancy Fees - Non Estates Related,2049,Professional Support,550.00 
Richardson Associates (UK) Limited,Management & Support Services,5,202212,15/03/2022,P6,9100533,"-1,320.00 ","1,320.00 ",4554,Consultancy Fees - Non Estates Related,2054,Equalities Team,"1,100.00 "
Nottingham City Council,Management & Support Services,4,202212,15/03/2022,P6,9100625,"-49,549.01 ","49,549.01 ",4554,Consultancy Fees - Non Estates Related,2093,Command Suite,"41,290.84 "
Reed Talent Solutions,Management & Support Services,5,202212,25/03/2022,P6,9100672,"-4,555.15 ","4,555.15 ",4554,Consultancy Fees - Non Estates Related,2065,Pan Organisation,"3,795.96 "
Reed Talent Solutions,Management & Support Services,5,202212,25/03/2022,P6,9100684,"-23,622.23 ","23,622.23 ",4554,Consultancy Fees - Non Estates Related,2065,Pan Organisation,"19,685.19 "
Lexis Nexis,Management & Support Services,1,202212,15/12/2021,P6,9100328,"-1,962.00 ","1,962.00 ",4581,Subscriptions,2049,Professional Support,"1,635.00 "
Experian Ltd,"Statutory Inspection, Certification & Enforcement",1,202212,17/03/2022,P6,9100597,"-9,000.00 ","9,000.00 ",4581,Subscriptions,2021,Fire Protection,"7,500.00 "
Debora Link Creative,Management & Support Services,5,202212,07/03/2022,P6,9100190,-541.50 ,541.50 ,4583,Marketing and Publicity,2068,Prevention,541.50 
(Vanessa Boon trading as) Energise - people development & diversity,Management & Support Services,5,202212,18/02/2022,P6,9100297,"-3,500.00 ","3,500.00 ",4583,Marketing and Publicity,2054,Equalities Team,"3,500.00 "
TetraLogical Limited,Management & Support Services,5,202212,23/03/2022,P6,9100430,"-3,600.00 ","3,600.00 ",4583,Marketing and Publicity,2054,Equalities Team,"3,000.00 "
Complete Business Solutions Group Ltd,Management & Support Services,1,202212,25/03/2022,P6,9100539,-576.00 ,576.00 ,4583,Marketing and Publicity,2068,Prevention,576.00 
Firefighter Protection Uk,Management & Support Services,1,202212,25/01/2022,P6,9099971,-270.60 ,270.60 ,4594,Training/ Teaching Equipment,2059,Corporate Training,225.50 
B D Motor Spares,Operational Responses,1,202212,07/03/2022,P6,9100173,"-4,224.00 ","4,224.00 ",4594,Training/ Teaching Equipment,1001,Mansfield,220.00 
B D Motor Spares,Management & Support Services,1,202212,07/03/2022,P6,9100173,"-4,224.00 ","4,224.00 ",4594,Training/ Teaching Equipment,2059,Corporate Training,220.00 
B D Motor Spares,Management & Support Services,1,202212,07/03/2022,P6,9100173,"-4,224.00 ","4,224.00 ",4594,Training/ Teaching Equipment,2059,Corporate Training,"3,080.00 "
Minster Joinery,Management & Support Services,5,202212,19/03/2022,P6,9100502,-570.00 ,570.00 ,4594,Training/ Teaching Equipment,2059,Corporate Training,570.00 
S P Services,Management & Support Services,1,202212,22/03/2022,P6,9100537,-359.94 ,359.94 ,4594,Training/ Teaching Equipment,2059,Corporate Training,299.95 
Bits At Micks,Operational Responses,1,202212,01/04/2022,P6,9100680,"-4,965.84 ","4,965.84 ",4594,Training/ Teaching Equipment,1003,London Road,435.60 
Bits At Micks,Operational Responses,1,202212,01/04/2022,P6,9100680,"-4,965.84 ","4,965.84 ",4594,Training/ Teaching Equipment,1019,West Bridgford,217.80 
Bits At Micks,Operational Responses,1,202212,01/04/2022,P6,9100680,"-4,965.84 ","4,965.84 ",4594,Training/ Teaching Equipment,1019,West Bridgford,435.60 
Bits At Micks,Operational Responses,1,202212,01/04/2022,P6,9100680,"-4,965.84 ","4,965.84 ",4594,Training/ Teaching Equipment,1020,Stockhill,217.80 
Bits At Micks,Operational Responses,1,202212,01/04/2022,P6,9100680,"-4,965.84 ","4,965.84 ",4594,Training/ Teaching Equipment,1023,Stapleford,435.60 
Bits At Micks,Operational Responses,1,202212,01/04/2022,P6,9100680,"-4,965.84 ","4,965.84 ",4594,Training/ Teaching Equipment,1024,Eastwood,217.80 
Bits At Micks,Operational Responses,1,202212,01/04/2022,P6,9100680,"-4,965.84 ","4,965.84 ",4594,Training/ Teaching Equipment,1027,Carlton,435.60 
Bits At Micks,Operational Responses,1,202212,01/04/2022,P6,9100680,"-4,965.84 ","4,965.84 ",4594,Training/ Teaching Equipment,1028,East Leake,435.60 
Bits At Micks,Operational Responses,1,202212,01/04/2022,P6,9100680,"-4,965.84 ","4,965.84 ",4594,Training/ Teaching Equipment,1029,Highfields Station,217.80 
Vision Support Services Ltd,Operational Responses,5,202212,30/03/2022,P6,9100650,-305.88 ,305.88 ,4600,Community Safety Delivery Consumables,1008,Worksop,254.90 
Bits At Micks,Management & Support Services,1,202212,01/04/2022,P6,9100680,"-4,965.84 ","4,965.84 ",4600,Community Safety Delivery Consumables,2068,Prevention,217.80 
Northern Diver (International) Ltd,Management & Support Services,1,202212,11/03/2022,P6,9100177,480.00 ,-480.00 ,4611,Stock Adjustments,2086,Procurement,-400.00 
Ashfield District Council (Council Offices),Management & Support Services,4,202212,22/03/2022,P6,9100687,"-2,500.00 ","2,500.00 ",4621,Contribution to Partnership Working,2068,Prevention,"2,500.00 "
Derbyshire Fire Authority,Operational Responses,4,202212,23/03/2022,P6,9100598,"-36,353.08 ","36,353.08 ",5000,Third Party Payments,2005,Fire Control,"19,957.73 "
Local Government Association,Management & Support Services,1,202212,03/03/2022,P6,9100282,"-27,052.50 ","27,052.50 ",7002,Legal Services,2065,Pan Organisation,"22,543.75 "
Browne Jacobson LLP,Management & Support Services,1,202212,31/03/2022,P6,9100691,-727.20 ,727.20 ,7002,Legal Services,2087,Estates Department (Previously Premises),16.00 
Browne Jacobson LLP,Management & Support Services,1,202212,31/03/2022,P6,9100691,-727.20 ,727.20 ,7002,Legal Services,2087,Estates Department (Previously Premises),86.00 
Browne Jacobson LLP,Management & Support Services,1,202212,31/03/2022,P6,9100691,-727.20 ,727.20 ,7002,Legal Services,2087,Estates Department (Previously Premises),456.00 
Nottinghamshire County Council,Management & Support Services,4,202212,15/03/2022,P6,9100205,"-8,970.00 ","8,970.00 ",7500,Treasury Services,1086,Corporate Core,"7,475.00 "
The Financial Reporting Council,Management & Support Services,4,202212,23/11/2021,P6,9100338,-391.00 ,391.00 ,7502,External Audit Fees,1086,Corporate Core,391.00 
Ernst And Young LLP,Management & Support Services,1,202212,25/03/2022,P6,9100583,"-26,115.60 ","26,115.60 ",7502,External Audit Fees,1086,Corporate Core,"21,763.00 "
NCC Pension Fund,Management & Support Services,1,202212,18/03/2022,P6,9100615,-720.00 ,720.00 ,7502,External Audit Fees,2081,Finance,600.00 
MPL (Yorkshire) Ltd,Management & Support Services,5,202212,24/02/2022,P6,9100052,-408.96 ,408.96 ,B314,Stock,9999,Default,340.80 
Dot Promotional Clothing,Management & Support Services,1,202212,03/03/2022,P6,9100073,-928.80 ,928.80 ,B314,Stock,9999,Default,774.00 
Dot Promotional Clothing,Management & Support Services,1,202212,03/03/2022,P6,9100075,-825.24 ,825.24 ,B314,Stock,9999,Default,687.70 
H-Squared,Management & Support Services,1,202212,04/03/2022,P6,9100084,-416.40 ,416.40 ,B314,Stock,9999,Default,336.00 
Premier Hose Technologies Ltd,Management & Support Services,1,202212,31/01/2022,P6,9100085,-277.97 ,277.97 ,B314,Stock,9999,Default,216.64 
Dot Promotional Clothing,Management & Support Services,1,202212,03/03/2022,P6,9100109,-326.88 ,326.88 ,B314,Stock,9999,Default,272.40 
Bristol Uniforms Limited,Management & Support Services,1,202212,01/03/2022,P6,9100119,"-1,387.63 ","1,387.63 ",B314,Stock,9999,Default,"1,156.36 "
MPL (Yorkshire) Ltd,Management & Support Services,5,202212,11/01/2022,P6,9100132,-264.00 ,264.00 ,B314,Stock,9999,Default,220.00 
J Hudson & Co (Whistles) Ltd,Management & Support Services,1,202212,14/01/2021,P6,9100134,-557.95 ,557.95 ,B314,Stock,9999,Default,453.50 
Bristol Uniforms Limited,Management & Support Services,1,202212,07/03/2022,P6,9100136,-765.46 ,765.46 ,B314,Stock,9999,Default,637.88 
J Hudson & Co (Whistles) Ltd,Management & Support Services,1,202212,09/03/2021,P6,9100137,-575.38 ,575.38 ,B314,Stock,9999,Default,468.00 
J Hudson & Co (Whistles) Ltd,Management & Support Services,1,202212,13/08/2021,P6,9100141,-294.58 ,294.58 ,B314,Stock,9999,Default,234.00 
Joseph Gleave and Son Limited -Joseph Gleave and Son (Holdings) Limited,Management & Support Services,5,202212,11/03/2022,P6,9100161,-587.09 ,587.09 ,B314,Stock,9999,Default,489.24 
FireAngel Safety Technology Limited,Management & Support Services,1,202212,08/03/2022,P6,9100166,"-1,980.00 ","1,980.00 ",B314,Stock,9999,Default,"1,650.00 "
Dot Promotional Clothing,Management & Support Services,1,202212,10/03/2022,P6,9100172,-634.80 ,634.80 ,B314,Stock,9999,Default,529.00 
Joseph Gleave and Son Limited -Joseph Gleave and Son (Holdings) Limited,Management & Support Services,5,202212,28/02/2022,P6,9100181,-290.66 ,290.66 ,B314,Stock,9999,Default,242.22 
Joseph Gleave and Son Limited -Joseph Gleave and Son (Holdings) Limited,Management & Support Services,5,202212,28/02/2022,P6,9100182,-345.89 ,345.89 ,B314,Stock,9999,Default,288.24 
Specialised Canvas Group,Management & Support Services,1,202212,15/03/2022,P6,9100203,-670.20 ,670.20 ,B314,Stock,9999,Default,539.64 
H Fine & Son Limited,Management & Support Services,1,202212,09/03/2022,P6,9100206,-285.60 ,285.60 ,B314,Stock,9999,Default,222.00 
Draeger Safety UK Limited,Management & Support Services,5,202212,14/03/2022,P6,9100207,"-1,466.94 ","1,466.94 ",B314,Stock,9999,Default,"1,222.45 "
Jafco Tools,Management & Support Services,1,202212,08/03/2022,P6,9100290,-506.88 ,506.88 ,B314,Stock,9999,Default,422.40 
AB Sports Nutrition,Management & Support Services,5,202212,04/03/2022,P6,9100322,-264.67 ,264.67 ,B314,Stock,9999,Default,220.56 
Joseph Gleave and Son Limited -Joseph Gleave and Son (Holdings) Limited,Management & Support Services,5,202212,18/03/2022,P6,9100326,-345.89 ,345.89 ,B314,Stock,9999,Default,288.24 
Thomas Kneale & Co Ltd,Management & Support Services,1,202212,16/03/2022,P6,9100372,-900.60 ,900.60 ,B314,Stock,9999,Default,729.00 
Trent Castings,Management & Support Services,1,202212,14/03/2022,P6,9100397,-710.00 ,710.00 ,B314,Stock,9999,Default,582.00 
Trent Castings,Management & Support Services,1,202212,08/03/2022,P6,9100401,-710.00 ,710.00 ,B314,Stock,9999,Default,582.00 
Collins Nets Ltd,Management & Support Services,1,202212,07/03/2022,P6,9100408,-316.80 ,316.80 ,B314,Stock,9999,Default,255.00 
Goliath Footwear Ltd,Management & Support Services,1,202212,15/03/2022,P6,9100412,"-1,996.80 ","1,996.80 ",B314,Stock,9999,Default,"1,664.00 "
Dot Promotional Clothing,Management & Support Services,1,202212,16/03/2022,P6,9100414,-278.40 ,278.40 ,B314,Stock,9999,Default,232.00 
New Balance Athletic Shoes (UK) Limited,Management & Support Services,5,202212,17/03/2022,P6,9100421,-760.08 ,760.08 ,B314,Stock,9999,Default,633.40 
Bristol Uniforms Limited,Management & Support Services,1,202212,21/03/2022,P6,9100422,"-6,252.26 ","6,252.26 ",B314,Stock,9999,Default,"5,210.22 "
Dot Promotional Clothing,Management & Support Services,1,202212,21/03/2022,P6,9100426,-258.30 ,258.30 ,B314,Stock,9999,Default,215.25 
William Sugden & sons Limited,Management & Support Services,5,202212,23/03/2022,P6,9100471,-288.48 ,288.48 ,B314,Stock,9999,Default,240.40 
BlockaboxLimited,Management & Support Services,5,202212,21/03/2022,P6,9100483,-535.00 ,535.00 ,B314,Stock,9999,Default,525.00 
Joseph Gleave and Son Limited -Joseph Gleave and Son (Holdings) Limited,Management & Support Services,5,202212,25/03/2022,P6,9100496,-345.84 ,345.84 ,B314,Stock,9999,Default,288.20 
Dot Promotional Clothing,Management & Support Services,1,202212,04/03/2022,P6,9100501,-273.60 ,273.60 ,B314,Stock,9999,Default,228.00 
Dot Promotional Clothing,Management & Support Services,1,202212,24/03/2022,P6,9100503,-480.00 ,480.00 ,B314,Stock,9999,Default,400.00 
AB Sports Nutrition,Management & Support Services,5,202212,21/02/2022,P6,9100517,-529.34 ,529.34 ,B314,Stock,9999,Default,441.12 
Dot Promotional Clothing,Management & Support Services,1,202212,24/03/2022,P6,9100519,"-1,055.52 ","1,055.52 ",B314,Stock,9999,Default,879.60 
Lyon Equipment Limited,Management & Support Services,1,202212,18/03/2022,P6,9100520,-670.37 ,670.37 ,B314,Stock,9999,Default,558.64 
Terberg DTS UK Limited,Management & Support Services,5,202212,15/03/2022,P6,9100522,-525.55 ,525.55 ,B314,Stock,9999,Default,420.46 
Bristol Uniforms Limited,Management & Support Services,1,202212,28/03/2022,P6,9100573,"-1,076.54 ","1,076.54 ",B314,Stock,9999,Default,897.12 
FireAngel Safety Technology Limited,Management & Support Services,1,202212,25/03/2022,P6,9100576,"-1,138.80 ","1,138.80 ",B314,Stock,9999,Default,949.00 
Redbrick Print Solutions LLP,Management & Support Services,5,202212,24/03/2022,P6,9100584,-255.00 ,255.00 ,B314,Stock,9999,Default,212.50 
Specialised Canvas Group,Management & Support Services,1,202212,29/03/2022,P6,9100604,-479.42 ,479.42 ,B314,Stock,9999,Default,376.48 
Angus Fire,Management & Support Services,1,202212,28/03/2022,P6,9100622,"-1,953.36 ","1,953.36 ",B314,Stock,9999,Default,"1,548.80 "
Collins Nets Ltd,Management & Support Services,1,202212,10/03/2022,P6,9100606,295.20 ,-295.20 ,B314,Stock,9999,Default,-246.00 
G.F. Tomlinson Building Limited,Management & Support Services,5,202212,28/02/2022,P6,9100131,"-565,394.15 ","565,394.15 ",C101,Building Works,4102,Strategic New Build Projects,"471,161.79 "
"Graham Asset Management, John Graham Holdings Limited",Management & Support Services,5,202212,23/02/2022,P6,9100572,"-1,900.48 ","1,900.48 ",C103,External Works,4102,Strategic New Build Projects,"1,583.73 "
Johnsons Business Moves,Management & Support Services,1,202212,24/01/2022,P6,9100197,-432.00 ,432.00 ,C107,Business Moves,4102,Strategic New Build Projects,360.00 
Fitness Warehouse Limited t/a Gym Gear,Management & Support Services,5,202212,30/03/2022,P6,9100623,-714.00 ,714.00 ,C107,Business Moves,4100,Fire Station Improvement & Refurbishments,595.00 
Johnsons Business Moves,Management & Support Services,1,202212,30/03/2022,P6,9100669,"-1,020.24 ","1,020.24 ",C107,Business Moves,4102,Strategic New Build Projects,850.20 
Eastern Shires Purchasing Organisation,Management & Support Services,1,202212,15/03/2022,P6,9100394,-670.80 ,670.80 ,C113,Fixtures and Fittings,4102,Strategic New Build Projects,559.00 
Fitness Warehouse Limited t/a Gym Gear,Management & Support Services,5,202212,31/03/2022,P6,9100670,"-4,446.00 ","4,446.00 ",C113,Fixtures and Fittings,4100,Fire Station Improvement & Refurbishments,"3,705.00 "
Turner and Townsend Project Management,Management & Support Services,5,202212,24/01/2022,P6,9100010,"-14,592.43 ","14,592.43 ",C150,Professional Fees - Architects,4102,Strategic New Build Projects,"12,160.36 "
Turner and Townsend Project Management,Management & Support Services,5,202212,21/02/2022,P6,9100112,"-11,562.43 ","11,562.43 ",C150,Professional Fees - Architects,4102,Strategic New Build Projects,"9,635.36 "
Turner and Townsend Project Management,Management & Support Services,5,202212,21/02/2022,P6,9100285,"-4,800.00 ","4,800.00 ",C150,Professional Fees - Architects,4102,Strategic New Build Projects,"4,000.00 "
Turner and Townsend Project Management,Management & Support Services,5,202212,17/12/2021,P6,9100111,"-14,127.00 ","14,127.00 ",C152,Professional Fees - Planning,2087,Estates Department (Previously Premises),"11,772.50 "
Browne Jacobson LLP,Management & Support Services,1,202212,31/03/2022,P6,9100691,-727.20 ,727.20 ,C157,Professional Fees - Legal,4102,Strategic New Build Projects,48.00 
Amptron Electrical Services,Management & Support Services,1,202212,17/02/2022,P6,9100535,"-4,223.95 ","4,223.95 ",C200,Hardware,4102,Strategic New Build Projects,"3,519.96 "
ITGL Limited,Management & Support Services,5,202212,23/03/2022,P6,9100619,"-2,358.11 ","2,358.11 ",C200,Hardware,4300,ICT Capital Programme,"1,965.09 "
ITGL Limited,Management & Support Services,5,202212,22/04/2022,P6,9100620,"-3,144.14 ","3,144.14 ",C200,Hardware,4300,ICT Capital Programme,"2,620.12 "
Risual Limited,Management & Support Services,5,202212,28/02/2022,P6,9100046,"-3,060.00 ","3,060.00 ",C202,Consultancy and Services,4300,ICT Capital Programme,"2,550.00 "
Civica Uk Limited,Management & Support Services,1,202212,14/02/2022,P6,9100067,-720.00 ,720.00 ,C202,Consultancy and Services,4300,ICT Capital Programme,600.00 
Midland HR,Management & Support Services,5,202212,27/02/2022,P6,9100229,"-1,296.00 ","1,296.00 ",C202,Consultancy and Services,4300,ICT Capital Programme,"1,080.00 "
Midland HR,Management & Support Services,5,202212,27/02/2022,P6,9100230,"-8,640.00 ","8,640.00 ",C202,Consultancy and Services,4300,ICT Capital Programme,"7,200.00 "
Midland HR,Management & Support Services,5,202212,29/12/2021,P6,9100283,"-2,548.80 ","2,548.80 ",C202,Consultancy and Services,4300,ICT Capital Programme,"2,124.00 "
J A Burns t/a squircle IT,Management & Support Services,5,202212,28/03/2022,P6,9100523,-614.40 ,614.40 ,C202,Consultancy and Services,4300,ICT Capital Programme,512.00 
Lithium3 Technology Recruitment Limited,Management & Support Services,5,202212,31/03/2022,P6,9100654,"-5,280.00 ","5,280.00 ",C204,Cost of Employee Working on Capital Projects,4102,Strategic New Build Projects,"4,400.00 "
Northern Diver (International) Ltd,Management & Support Services,1,202212,24/03/2022,P6,9100561,"-22,708.80 ","22,708.80 ",C300,Other Equipment - Purchase,4200,Equipment Capital Programme,"18,924.00 "
Bristol Uniforms Limited,Management & Support Services,1,202212,24/03/2022,P6,9100578,"-112,481.46 ","112,481.46 ",C300,Other Equipment - Purchase,4200,Equipment Capital Programme,"93,734.55 "
Bristol Uniforms Limited,Management & Support Services,1,202212,24/03/2022,P6,9100579,"-1,648.08 ","1,648.08 ",C300,Other Equipment - Purchase,4200,Equipment Capital Programme,"1,373.40 "
"***The report shows the payment in its original form. This means disaggregating many invoices into individual component payments many of which will be less than £250 in their own right. This explains why you will see many of the amounts showing less than £250. They were, however, paid as part of an invoice of £250 or more.

**** The Invoice date is the date issued on the invoice. This date may fall out of the date range for the report. In most cases this is due to the invoice being received  late.",,,,,,,,,,,,,